Workbook

Sheet @Формулы (hidden)
A1: =SUM(Расходы200_02!E7:E10) -> 344082.6
A2: =SUM(Расходы200_02!F7:F10) -> 193091.77
A3: =SUM(Расходы200_02!G7:G10) -> 0
A4: =SUM(Расходы200_02!H7:H10) -> 0
A5: =SUM(Расходы200_02!I7:I10) -> 0
A6: =SUM(Расходы200_02!J7:J10) -> 193091.77
A7: =SUM(Расходы200_02!K7:K10) -> 150990.83
A8: =SUM(Источники520_02!D7:D8) -> 0
A9: =SUM(Источники520_02!E7:E8) -> 0
A10: =SUM(Источники520_02!F7:F8) -> 0
A11: =SUM(Источники520_02!G7:G8) -> 0
A12: =SUM(Источники520_02!H7:H8) -> 0
A13: =SUM(Источники520_02!I7:I8) -> 0
A14: =SUM(Источники520_02!J7:J8) -> 0
A15: =SUM(Источники620_02!D7:D8) -> 0
A16: =SUM(Источники620_02!E7:E8) -> 0
A17: =SUM(Источники620_02!F7:F8) -> 0
A18: =SUM(Источники620_02!G7:G8) -> 0
A19: =SUM(Источники620_02!H7:H8) -> 0
A20: =SUM(Источники620_02!I7:I8) -> 0
A21: =SUM(Источники620_02!J7:J8) -> 0
A22: =SUM(Расходы200_04!E7:E22) -> 13383254.01
A23: =SUM(Расходы200_04!F7:F22) -> 13208940.4
A24: =SUM(Расходы200_04!G7:G22) -> 0
A25: =SUM(Расходы200_04!H7:H22) -> 64894.33
A26: =SUM(Расходы200_04!I7:I22) -> 0
A27: =SUM(Расходы200_04!J7:J22) -> 13273834.73
A28: =SUM(Расходы200_04!K7:K22) -> 109419.28
A29: =SUM(Источники520_04!D7:D8) -> 0
A30: =SUM(Источники520_04!E7:E8) -> 0
A31: =SUM(Источники520_04!F7:F8) -> 0
A32: =SUM(Источники520_04!G7:G8) -> 0
A33: =SUM(Источники520_04!H7:H8) -> 0
A34: =SUM(Источники520_04!I7:I8) -> 0
A35: =SUM(Источники520_04!J7:J8) -> 0
A36: =SUM(Расходы200_05!E7:E9) -> 157633.54
A37: =SUM(Расходы200_05!F7:F9) -> 140688.04
A38: =SUM(Расходы200_05!G7:G9) -> 0
A39: =SUM(Расходы200_05!H7:H9) -> 0
A40: =SUM(Расходы200_05!I7:I9) -> 0
A41: =SUM(Расходы200_05!J7:J9) -> 140688.04
A42: =SUM(Расходы200_05!K7:K9) -> 16945.5
A43: =SUM(Источники520_05!D7:D8) -> 0
A44: =SUM(Источники520_05!E7:E8) -> 0
A45: =SUM(Источники520_05!F7:F8) -> 0
A46: =SUM(Источники520_05!G7:G8) -> 0
A47: =SUM(Источники520_05!H7:H8) -> 0
A48: =SUM(Источники520_05!I7:I8) -> 0
A49: =SUM(Источники520_05!J7:J8) -> 0
A50: =SUM(Расходы200_06!E7:E8) -> 0
A51: =SUM(Расходы200_06!F7:F8) -> 0
A52: =SUM(Расходы200_06!G7:G8) -> 0
A53: =SUM(Расходы200_06!H7:H8) -> 0
A54: =SUM(Расходы200_06!I7:I8) -> 0
A55: =SUM(Расходы200_06!J7:J8) -> 0
A56: =SUM(Расходы200_06!K7:K8) -> 0
A57: =SUM(Источники520_06!D7:D8) -> 0
A58: =SUM(Источники520_06!E7:E8) -> 0
A59: =SUM(Источники520_06!F7:F8) -> 0
A60: =SUM(Источники520_06!G7:G8) -> 0
A61: =SUM(Источники520_06!H7:H8) -> 0
A62: =SUM(Источники520_06!I7:I8) -> 0
A63: =SUM(Источники520_06!J7:J8) -> 0
A64: =SUM(Расходы200_07!E7:E8) -> 0
A65: =SUM(Расходы200_07!F7:F8) -> 0
A66: =SUM(Расходы200_07!G7:G8) -> 0
A67: =SUM(Расходы200_07!H7:H8) -> 0
A68: =SUM(Расходы200_07!I7:I8) -> 0
A69: =SUM(Расходы200_07!J7:J8) -> 0
A70: =SUM(Расходы200_07!K7:K8) -> 0
A71: =SUM(Источники520_07!D7:D8) -> 0
A72: =SUM(Источники520_07!E7:E8) -> 0
A73: =SUM(Источники520_07!F7:F8) -> 0
A74: =SUM(Источники520_07!G7:G8) -> 0
A75: =SUM(Источники520_07!H7:H8) -> 0
A76: =SUM(Источники520_07!I7:I8) -> 0
A77: =SUM(Источники520_07!J7:J8) -> 0

Sheet @Параметры (hidden)
A1: ВерсияМетаописания | B1: 1.0
A2: Идентификатор | B2: 0503737
A3: Код | B3: 0503737
A4: Наименование | B4: Отчёт об исполнении учрежденем плана его финансово-хозяйственной деятельности
A5: Группа | B5: АиБ
A6: ДатаНачалаДействия | B6: 01.01.2021 0:00:00
A7: ДатаОкончанияДействия | B7: 01.01.2022 0:00:00
A8: Авторство | B8: Барс Груп
A9: Учреждение | B9: Школа Лучовская
A10: Период | B10: Бюджетные учреждения

Sheet @Ячейки (hidden)
A1: Собственныедоходы | B1: 4.00 | C1: 23 | D1: Jump | E1: Расходы200_02
A2: Собственныедоходы | B2: 4.00 | C2: 31 | D2: Jump | E2: Источники520_02
A3: Собственныедоходы | B3: 4.00 | C3: 36 | D3: Jump | E3: Источники620_02
A4: СубсидииНаГосзадание | B4: 4.00 | C4: 24 | D4: Jump | E4: Расходы200_04
A5: СубсидииНаГосзадание | B5: 4.00 | C5: 32 | D5: Jump | E5: Источники520_04
A6: СубсидииНаИныеЦели | B6: 4.00 | C6: 23 | D6: Jump | E6: Расходы200_05
A7: СубсидииНаИныеЦели | B7: 4.00 | C7: 31 | D7: Jump | E7: Источники520_05
A8: БюджетныеИнвестиции | B8: 4.00 | C8: 23 | D8: Jump | E8: Расходы200_06
A9: БюджетныеИнвестиции | B9: 4.00 | C9: 31 | D9: Jump | E9: Источники520_06
A10: СредстваВРамкахОМС | B10: 4.00 | C10: 24 | D10: Jump | E10: Расходы200_07
A11: СредстваВРамкахОМС | B11: 4.00 | C11: 32 | D11: Jump | E11: Источники520_07
A12: Расходы200_02 | B12: 3.00 | D12: Select | E12: Расходы_7370 | F12: СсылкаНаСправочник
A13: Расходы200_02 | B13: 4.00 | D13: Select | E13: КоСГУ1 | F13: СсылкаНаСправочник
A14: Расходы200_04 | B14: 3.00 | D14: Select | E14: Расходы_7370 | F14: СсылкаНаСправочник
A15: Расходы200_04 | B15: 4.00 | D15: Select | E15: КоСГУ1 | F15: СсылкаНаСправочник
A16: Расходы200_05 | B16: 3.00 | D16: Select | E16: Расходы_7372 | F16: СсылкаНаСправочник
A17: Расходы200_05 | B17: 4.00 | D17: Select | E17: КоСГУ1 | F17: СсылкаНаСправочник
A18: Расходы200_06 | B18: 3.00 | D18: Select | E18: Расходы_7370 | F18: СсылкаНаСправочник
A19: Расходы200_06 | B19: 4.00 | D19: Select | E19: КоСГУ1 | F19: СсылкаНаСправочник
A20: Расходы200_07 | B20: 3.00 | D20: Select | E20: Расходы_7370 | F20: СсылкаНаСправочник
A21: Расходы200_07 | B21: 4.00 | D21: Select | E21: КоСГУ1 | F21: СсылкаНаСправочник
A22: Источники520_02 | B22: 3.00 | D22: Select | E22: Источники520_7373 | F22: СсылкаНаСправочник
A23: Источники520_04 | B23: 3.00 | D23: Select | E23: Источники520_7373 | F23: СсылкаНаСправочник
A24: Источники520_05 | B24: 3.00 | D24: Select | E24: Источники520_7373 | F24: СсылкаНаСправочник
A25: Источники520_06 | B25: 3.00 | D25: Select | E25: Источники520_7373 | F25: СсылкаНаСправочник
A26: Источники520_07 | B26: 3.00 | D26: Select | E26: Источники520_7373 | F26: СсылкаНаСправочник
A27: Источники620_02 | B27: 3.00 | D27: Select | E27: Источники620_7374 | F27: СсылкаНаСправочник
A28: Источники620_04 | B28: 3.00 | D28: Select | E28: Источники620_7374 | F28: СсылкаНаСправочник
A29: Источники620_05 | B29: 3.00 | D29: Select | E29: Источники620_7374 | F29: СсылкаНаСправочник
A30: Источники620_06 | B30: 3.00 | D30: Select | E30: Источники620_7374 | F30: СсылкаНаСправочник
A31: Источники620_07 | B31: 3.00 | D31: Select | E31: Источники620_7374 | F31: СсылкаНаСправочник

Sheet @Таблицы (hidden)
A1: Расходы200_02 | B1: 7.00 | C1: 9.00 | D1: 4.00 | F1: 11.00 | G1: Запретить
A2: Расходы200_04 | B2: 7.00 | C2: 21.00 | D2: 4.00 | F2: 11.00 | G2: Запретить
A3: Расходы200_05 | B3: 7.00 | C3: 8.00 | D3: 4.00 | F3: 11.00 | G3: Запретить
A4: Расходы200_06 | B4: 7.00 | C4: 7.00 | D4: 4.00 | F4: 11.00 | G4: Запретить
A5: Расходы200_07 | B5: 7.00 | C5: 7.00 | D5: 4.00 | F5: 11.00 | G5: Запретить
A6: Источники520_02 | B6: 7.00 | C6: 7.00 | D6: 4.00 | F6: 10.00 | G6: Запретить
A7: Источники520_04 | B7: 7.00 | C7: 7.00 | D7: 4.00 | F7: 10.00 | G7: Запретить
A8: Источники520_05 | B8: 7.00 | C8: 7.00 | D8: 4.00 | F8: 10.00 | G8: Запретить
A9: Источники520_06 | B9: 7.00 | C9: 7.00 | D9: 4.00 | F9: 10.00 | G9: Запретить
A10: Источники520_07 | B10: 7.00 | C10: 7.00 | D10: 4.00 | F10: 10.00 | G10: Запретить
A11: Источники620_02 | B11: 7.00 | C11: 7.00 | D11: 4.00 | F11: 10.00 | G11: Запретить
A12: Источники620_04 | B12: 7.00 | C12: 7.00 | D12: 4.00 | F12: 10.00 | G12: Запретить
A13: Источники620_05 | B13: 7.00 | C13: 7.00 | D13: 4.00 | F13: 10.00 | G13: Запретить
A14: Источники620_06 | B14: 7.00 | C14: 7.00 | D14: 4.00 | F14: 10.00 | G14: Запретить
A15: Источники620_07 | B15: 7.00 | C15: 7.00 | D15: 4.00 | F15: 10.00 | G15: Запретить

Sheet Шапка
A1: ОТЧЕТ
A2: ОБ ИСПОЛНЕНИИ УЧРЕЖДЕНИЕМ ПЛАНА ЕГО ФИНАНСОВО-ХОЗЯЙСТВЕННОЙ ДЕЯТЕЛЬНОСТИ | I2: КОДЫ
H3: Форма по ОКУД | I3: 0503737
A4: на 1 января 2021 г. | H4: Дата | I4: 01.01.2021
H5: по ОКПО | I5: 47101725
A6: Учреждение | B6: Муниципальное бюджетное образовательное учреждение "Лучовская средняя общеобразовательная школа" Чистопольского муниципального района Республики Татарстан
A7: Обособленное подразделение | H7: по ОКТМО | I7: 92659000
A8: Учредитель | H8: по ОКПО
A9: Наименование органа, осуществляющего | H9: Глава по БК | I9: 000
A10: полномочия учредителя
A12: Периодичность: квартальная, годовая | H12: по ОКЕИ | I12: 383
A13: Единица измерения: руб
A15: Идентификатор получателя
A16: Идентификатор конечного получателя

Sheet Собственныедоходы
A2: Наименование показателя | B2: #КодыСтрок | C2: Код строки | D2: Код аналитики | E2: Утверждено плановых назначений | F2: Исполнено плановых назначений | K2: Сумма отклонения
F3: через лицевые счета | G3: через банковские счета | H3: через кассу учреждения | I3: некассовые операции | J3: итого
A4: #КодыСтолбцов | E4: 4 | F4: 5 | G4: 6 | H4: 7 | I4: 8 | J4: 9 | K4: 10
A5: 1 | C5: 2 | D5: 3 | E5: 4 | F5: 5 | G5: 6 | H5: 7 | I5: 8 | J5: 9 | K5: 10
A6: Доходы - всего | B6: 010 | C6: 010 | E6: =E7+E8+E9+E10+E11+E16 -> 288,677.00 | F6: =F7+F8+F9+F10+F11+F16 -> 224,186.00 | G6: =G7+G8+G9+G10+G11+G16 -> 0.00 | H6: =H7+H8+H9+H10+H11+H16 -> 0.00 | I6: =I7+I8+I9+I10+I11+I16 -> 0.00 | J6: =F6+G6+H6+I6 -> 224,186.00 | K6: =E6-J6 -> 64,491.00
A7: Доходы от собственности | B7: 030 | C7: 030 | D7: 120 | E7: 14,040.00 | F7: 14,040.00 | G7: 0.00 | H7: 0.00 | I7: 0.00 | J7: 14,040.00 | K7: =E7-J7 -> 0.00
A8: Доходы от оказания платных услуг (работ) и компенсации затрат | B8: 040 | C8: 040 | D8: 130 | E8: 277,193.00 | F8: 212,702.00 | G8: 0.00 | H8: 0.00 | I8: 0.00 | J8: 212,702.00 | K8: =E8-J8 -> 64,491.00
A9: Штрафы, пени, неустойки, возмещения ущерба | B9: 050 | C9: 050 | D9: 140 | E9: 0.00 | F9: 0.00 | G9: 0.00 | H9: 0.00 | I9: 0.00 | J9: 0.00 | K9: =E9-J9 -> 0.00
A10: Безвозмездные денежные поступления | B10: 060 | C10: 060 | D10: 150 | E10: 0.00 | F10: 0.00 | G10: 0.00 | H10: 0.00 | I10: 0.00 | J10: 0.00 | K10: =E10-J10 -> 0.00
A11: Доходы от выбытия нефинансовых активов | B11: 090 | C11: 090 | D11: 400 | E11: =E12+E13+E14+E15 -> 0.00 | F11: =F12+F13+F14+F15 -> 0.00 | G11: =G12+G13+G14+G15 -> 0.00 | H11: =H12+H13+H14+H15 -> 0.00 | I11: =I12+I13+I14+I15 -> 0.00 | J11: 0.00 | K11: =K12+K13+K14+K15 -> 0.00
A12: в том числе: от выбытий основных средств | B12: 092 | C12: 092 | D12: 410 | E12: 0.00 | F12: 0.00 | G12: 0.00 | H12: 0.00 | I12: 0.00 | J12: 0.00 | K12: =E12-J12 -> 0.00
A13: от выбытий нематериальных активов | B13: 093 | C13: 093 | D13: 420 | E13: 0.00 | F13: 0.00 | G13: 0.00 | H13: 0.00 | I13: 0.00 | J13: 0.00 | K13: =E13-J13 -> 0.00
A14: от выбытий непроизведенных активов | B14: 094 | C14: 094 | D14: 430 | E14: 0.00 | F14: 0.00 | G14: 0.00 | H14: 0.00 | I14: 0.00 | J14: 0.00 | K14: =E14-J14 -> 0.00
A15: от выбытий материальных запасов | B15: 095 | C15: 095 | D15: 440 | E15: 0.00 | F15: 0.00 | G15: 0.00 | H15: 0.00 | I15: 0.00 | J15: 0.00 | K15: =E15-J15 -> 0.00
A16: Прочие доходы | B16: 100 | C16: 100 | D16: 180 | E16: -2,556.00 | F16: -2,556.00 | G16: 0.00 | H16: 0.00 | I16: 0.00 | J16: -2,556.00 | K16: =E16-J16 -> 0.00
A19: Наименование показателя | C19: Код стро- ки | D19: Код аналитики | E19: Утверждено плановых назначений | F19: Исполнено плановых назначений | K19: Сумма отклонения
F20: через лицевые счета | G20: через банковские счета | H20: через кассу учреждения | I20: некассовые операции | J20: итого
A21: 1 | C21: 2 | D21: 3 | E21: 4 | F21: 5 | G21: 6 | H21: 7 | I21: 8 | J21: 9 | K21: 10
A22: Расходы бюджета - всего | B22: 200 | C22: 200 | D22: x | E22: =E23 -> 344,082.60 | F22: 193,091.77 | G22: 0.00 | H22: 0.00 | I22: 0.00 | J22: 193,091.77 | K22: 150,990.83
A23: в том числе: | B23: 210 | C23: 210 | D23: Строки Строки >> | E23: ='@Формулы'!A1 -> 344,082.60 | F23: ='@Формулы'!A2 -> 193,091.77 | G23: ='@Формулы'!A3 -> 0.00 | H23: ='@Формулы'!A4 -> 0.00 | I23: ='@Формулы'!A5 -> 0.00 | J23: ='@Формулы'!A6 -> 193,091.77 | K23: ='@Формулы'!A7 -> 150,990.83
A24: Результат исполнения бюджета (дефицит, профицит) | B24: 450 | C24: 450 | D24: x | E24: =E6-E22 -> -55,405.60 | F24: 31,094.23 | G24: 0.00 | H24: 0.00 | I24: 0.00 | J24: 31,094.23 | K24: x
A27: Наименование показателя | C27: Код строки | D27: Код аналитики | E27: Утверждено плановых назначений | F27: Исполнено плановых назначений | K27: Сумма отклонения
F28: через лицевые счета | G28: через банковские счета | H28: через кассу учреждения | I28: некассовые операции | J28: итого
A29: 1 | C29: 2 | D29: 3 | E29: 4 | F29: 5 | G29: 6 | H29: 7 | I29: 8 | J29: 9 | K29: 10
A30: Источники финансирования дефицита средств - всего | B30: 500 | C30: 500 | D30: x | E30: =E31+E35+E37+E43+E46+E32 -> 55,405.60 | F30: =F31+F32+F35+F37+F40+F43+F46 -> -31,094.23 | G30: =G31+G32+G35+G37+G40+G43+G46 -> 0.00 | H30: =H31+H32+H35+H37+H40+H43+H46 -> 0.00 | I30: =I31+I32+I35+I43+I46 -> 0.00 | J30: =F30+G30+H30+I30 -> -31,094.23 | K30: =E30-J30 -> 86,499.83
A31: в том числе: внутренние источники | B31: 520 | C31: 520 | D31: Строки Строки >> | E31: ='@Формулы'!A8 -> 0.00 | F31: ='@Формулы'!A9 -> 0.00 | G31: ='@Формулы'!A10 -> 0.00 | H31: ='@Формулы'!A11 -> 0.00 | I31: ='@Формулы'!A12 -> 0.00 | J31: ='@Формулы'!A13 -> 0.00 | K31: ='@Формулы'!A14 -> 0.00
A32: Движение денежных средств | B32: 590 | C32: 590 | E32: =E33+E34 -> 0.00 | F32: 0.00 | G32: 0.00 | H32: 0.00 | I32: 0.00 | J32: 0.00 | K32: 0.00
A33: поступление денежных средств прочие | B33: 591 | C33: 591 | D33: 510 | E33: 0.00 | F33: 0.00 | G33: 0.00 | H33: 0.00 | I33: 0.00 | J33: =F33+G33+H33+I33 -> 0.00 | K33: =E33-J33 -> 0.00
A34: выбытие денежных средств | B34: 592 | C34: 592 | D34: 610 | E34: 0.00 | F34: 0.00 | G34: 0.00 | H34: 0.00 | I34: 0.00 | J34: =F34+G34+H34+I34 -> 0.00 | K34: =E34-J34 -> 0.00
A35: Внешние источники | B35: 620 | C35: 620 | E35: =E36 -> 0.00 | F35: =F36 -> 0.00 | G35: =G36 -> 0.00 | H35: =H36 -> 0.00 | I35: =I36 -> 0.00 | J35: =F35+G35+H35+I35 -> 0.00 | K35: =K36 -> 0.00
A36: из них: | B36: 621 | D36: Строки Строки >> | E36: ='@Формулы'!A15 -> 0.00 | F36: ='@Формулы'!A16 -> 0.00 | G36: ='@Формулы'!A17 -> 0.00 | H36: ='@Формулы'!A18 -> 0.00 | I36: ='@Формулы'!A19 -> 0.00 | J36: ='@Формулы'!A20 -> 0.00 | K36: ='@Формулы'!A21 -> 0.00
A37: Изменение остатков средств | B37: 700 | C37: 700 | D37: x | E37: 55,405.60 | F37: =F38+F39 -> -31,094.23 | G37: =G38+G39 -> 0.00 | H37: =H38+H39 -> 0.00 | I37: x | J37: =J38+J39 -> -31,094.23 | K37: =E37-J37 -> 86,499.83
A38: увеличение остатков средств, всего | B38: 710 | C38: 710 | D38: 510 | E38: x | F38: -226,742.00 | G38: 0.00 | H38: 0.00 | I38: x | J38: =F38+G38+H38 -> -226,742.00 | K38: x
A39: уменьшение остатков средств, всего | B39: 720 | C39: 720 | D39: 610 | E39: x | F39: 195,647.77 | G39: 0.00 | H39: 0.00 | I39: x | J39: =F39+G39+H39 -> 195,647.77 | K39: x
A40: Изменение остатков по внутренним оборотам средств учреждения | B40: 730 | C40: 730 | D40: x | E40: x | F40: =F41+F42 -> 0.00 | G40: =G41+G42 -> 0.00 | H40: =H41+H42 -> 0.00 | I40: x | J40: =F40+G40+H40 -> 0.00 | K40: x
A41: в том числе: увеличение остатков средств учреждения | B41: 731 | C41: 731 | D41: 510 | E41: x | F41: 0.00 | G41: 0.00 | H41: 0.00 | I41: x | J41: =F41+G41+H41 -> 0.00 | K41: x
A42: уменьшение остатков средств учреждения | B42: 732 | C42: 732 | D42: 610 | E42: x | F42: 0.00 | G42: 0.00 | H42: 0.00 | I42: x | J42: =F42+G42+H42 -> 0.00 | K42: x
A43: Изменение остатков по внутренним расчетам | B43: 820 | C43: 820 | D43: x | E43: =E44+E45 -> 0.00 | F43: 0.00 | G43: 0.00 | H43: 0.00 | I43: 0.00 | J43: 0.00 | K43: =E43-J43 -> 0.00
A44: в том числе: увеличение остатков по внутренним расчетам (Кт 030404510) | B44: 821 | C44: 821 | E44: 0.00 | F44: 0.00 | G44: 0.00 | H44: 0.00 | I44: 0.00 | J44: =F44+G44+H44+I44 -> 0.00 | K44: 0.00
A45: уменьшение остатков по внутренним расчетам (Дт 030404610) | B45: 822 | C45: 822 | E45: 0.00 | F45: 0.00 | G45: 0.00 | H45: 0.00 | I45: 0.00 | J45: =F45+G45+H45+I45 -> 0.00 | K45: 0.00
A46: Изменение остатков расчетов по внутренним привлечениям средств | B46: 830 | C46: 830 | D46: x | E46: =E47+E48 -> 0.00 | F46: 0.00 | G46: 0.00 | H46: 0.00 | I46: 0.00 | J46: 0.00 | K46: 0.00
A47: в том числе: увеличение расчетов по внутреннему привлечению остатков средств (Кт 030406000) | B47: 831 | C47: 831 | E47: 0.00 | F47: 0.00 | G47: 0.00 | H47: 0.00 | I47: 0.00 | J47: =F47+G47+H47+I47 -> 0.00 | K47: 0.00
A48: уменьшение расчетов по внутреннему привлечению остатков средств (Дт 030406000) | B48: 832 | C48: 832 | E48: 0.00 | F48: 0.00 | G48: 0.00 | H48: 0.00 | I48: 0.00 | J48: =F48+G48+H48+I48 -> 0.00 | K48: 0.00
A52: Наименование показателя | C52: Код строки | D52: Код аналитики | E52: Исполнено плановых назначений
E53: через лицевые счета | F53: через банковские счета | G53: через кассу учреждения | H53: некассовыми операциями | I53: Итого
A54: Возвращено остатков субсидий прошлых лет | B54: 910 | C54: 910 | D54: Х | E54: 0.00 | F54: 0.00 | G54: 0.00 | H54: 0.00 | I54: =E54+F54+G54+H54 -> 0.00 | J54: 0.00 | K54: 0.00
A55: Возвращено расходов прошлых лет | B55: 950 | C55: 950 | E55: 0.00 | F55: 0.00 | G55: 0.00 | H55: 0.00 | I55: =E55+F55+G55+H55 -> 0.00 | J55: 0.00 | K55: 0.00

Sheet СубсидииНаГосзадание
A2: Наименование показателя | B2: #КодыСтрок | C2: Код строки | D2: Код аналитики | E2: Утверждено плановых назначений | F2: Исполнено плановых назначений | K2: Сумма отклонения
F3: через лицевые счета | G3: через банковские счета | H3: через кассу учреждения | I3: некассовые операции | J3: итого
A4: #КодыСтолбцов | E4: 4 | F4: 5 | G4: 6 | H4: 7 | I4: 8 | J4: 9 | K4: 10
A5: 1 | C5: 2 | D5: 3 | E5: 4 | F5: 5 | G5: 6 | H5: 7 | I5: 8 | J5: 9 | K5: 10
A6: Доходы - всего | B6: 010 | C6: 010 | E6: =E8+E9 -> 13,383,254.01 | F6: 13,383,254.01 | G6: 0.00 | H6: 0.00 | I6: 0.00 | J6: 13,383,254.01 | K6: =E6-J6 -> 0.00
A7: Доходы от собственности | B7: 030 | C7: 030 | D7: 120 | E7: x | F7: x | G7: x | H7: x | I7: x | J7: x | K7: x
A8: Доходы от оказания платных услуг (работ) и компенсации затрат | B8: 040 | C8: 040 | D8: 130 | E8: 13,383,254.01 | F8: 13,383,254.01 | G8: 0.00 | H8: 0.00 | I8: 0.00 | J8: =F8+G8+H8+I8 -> 13,383,254.01 | K8: =E8-J8 -> 0.00
A9: Штрафы, пени, неустойки, возмещения ущерба | B9: 050 | C9: 050 | D9: 140 | E9: 0.00 | F9: 0.00 | G9: 0.00 | H9: 0.00 | I9: 0.00 | J9: =F9+G9+H9+I9 -> 0.00 | K9: =E9-J9 -> 0.00
A10: Безвозмездные денежные поступления | B10: 060 | C10: 060 | D10: 150 | E10: x | F10: x | G10: x | H10: x | I10: x | J10: x | K10: x
A11: Доходы от выбытия нефинансовых активов | B11: 090 | C11: 090 | D11: 400 | E11: x | F11: x | G11: x | H11: x | I11: x | J11: x | K11: x
A12: в том числе: от выбытий основных средств | B12: 092 | C12: 092 | D12: 410 | E12: x | F12: x | G12: x | H12: x | I12: x | J12: x | K12: x
A13: от выбытий нематериальных активов | B13: 093 | C13: 093 | D13: 420 | E13: x | F13: x | G13: x | H13: x | I13: x | J13: x | K13: x
A14: от выбытий непроизведенных активов | B14: 094 | C14: 094 | D14: 430 | E14: x | F14: x | G14: x | H14: x | I14: x | J14: x | K14: x
A15: от выбытий материальных запасов | B15: 095 | C15: 095 | D15: 440 | E15: x | F15: x | G15: x | H15: x | I15: x | J15: x | K15: x
A16: Прочие доходы | B16: 100 | C16: 100 | D16: 180 | E16: x | F16: x | G16: x | H16: x | I16: x | J16: x | K16: x
A20: Наименование показателя | C20: Код стро- ки | D20: Код аналитики | E20: Утверждено плановых назначений | F20: Исполнено плановых назначений | K20: Сумма отклонения
F21: через лицевые счета | G21: через банковские счета | H21: через кассу учреждения | I21: некассовые операции | J21: итого
A22: 1 | C22: 2 | D22: 3 | E22: 4 | F22: 5 | G22: 6 | H22: 7 | I22: 8 | J22: 9 | K22: 10
A23: Расходы бюджета - всего | B23: 200 | C23: 200 | D23: x | E23: =E24 -> 13,383,254.01 | F23: 13,208,940.40 | G23: 0.00 | H23: 64,894.33 | I23: 0.00 | J23: 13,273,834.73 | K23: 109,419.28
A24: в том числе: | B24: 210 | C24: 210 | D24: Строки Строки >> | E24: ='@Формулы'!A22 -> 13,383,254.01 | F24: ='@Формулы'!A23 -> 13,208,940.40 | G24: ='@Формулы'!A24 -> 0.00 | H24: ='@Формулы'!A25 -> 64,894.33 | I24: ='@Формулы'!A26 -> 0.00 | J24: ='@Формулы'!A27 -> 13,273,834.73 | K24: ='@Формулы'!A28 -> 109,419.28
A25: Результат исполнения бюджета (дефицит, профицит) | B25: 450 | C25: 450 | D25: x | E25: =E6-E23 -> 0.00 | F25: 174,313.61 | G25: 0.00 | H25: -64,894.33 | I25: 0.00 | J25: 109,419.28 | K25: x
A28: Наименование показателя | C28: Код строки | D28: Код аналитики | E28: Утверждено плановых назначений | F28: Исполнено плановых назначений | K28: Сумма отклонения
F29: через лицевые счета | G29: через банковские счета | H29: через кассу учреждения | I29: некассовые операции | J29: итого
A30: 1 | C30: 2 | D30: 3 | E30: 4 | F30: 5 | G30: 6 | H30: 7 | I30: 8 | J30: 9 | K30: 10
A31: Источники финансирования дефицита средств - всего | B31: 500 | C31: 500 | D31: x | E31: =E32+E33+E37+E43+E46 -> 0.00 | F31: =F32+F33+F37+F43+F46+F40 -> -174,313.61 | G31: =G32+G33+G37+G43+G46+G40 -> 0.00 | H31: =H32+H33+H37+H43+H46+H40 -> 64,894.33 | I31: =I32+I33+I43+I46 -> 0.00 | J31: =F31+G31+H31+I31 -> -109,419.28 | K31: =E31-J31 -> 109,419.28
A32: в том числе: внутренние источники | B32: 520 | C32: 520 | D32: Строки Строки >> | E32: ='@Формулы'!A29 -> 0.00 | F32: ='@Формулы'!A30 -> 0.00 | G32: ='@Формулы'!A31 -> 0.00 | H32: ='@Формулы'!A32 -> 0.00 | I32: ='@Формулы'!A33 -> 0.00 | J32: ='@Формулы'!A34 -> 0.00 | K32: ='@Формулы'!A35 -> 0.00
A33: Движение денежных средств | B33: 590 | C33: 590 | E33: =E34+E35 -> 0.00 | F33: -2,565.76 | G33: 0.00 | H33: 0.00 | I33: 0.00 | J33: -2,565.76 | K33: 2,565.76
A34: поступление денежных средств прочие | B34: 591 | C34: 591 | D34: 510 | E34: 0.00 | F34: 0.00 | G34: 0.00 | H34: 0.00 | I34: 0.00 | J34: =F34+G34+H34+I34 -> 0.00 | K34: =E34-J34 -> 0.00
A35: выбытие денежных средств | B35: 592 | C35: 592 | D35: 610 | E35: 0.00 | F35: -2,565.76 | G35: 0.00 | H35: 0.00 | I35: 0.00 | J35: =F35+G35+H35+I35 -> -2,565.76 | K35: =E35-J35 -> 2,565.76
A36: Внешние источники | B36: 620 | C36: 620 | E36: x | F36: x | G36: x | H36: x | I36: x | J36: x | K36: x
A37: Изменение остатков средств | B37: 700 | C37: 700 | D37: x | E37: 0.00 | F37: =F38+F39 -> -106,853.52 | G37: =G38+G39 -> 0.00 | H37: =H38+H39 -> 0.00 | I37: x | J37: =J38+J39 -> -106,853.52 | K37: =E37-J37 -> 106,853.52
A38: увеличение остатков средств, всего | B38: 710 | C38: 710 | D38: 510 | E38: x | F38: -13,383,254.01 | G38: -64,894.33 | H38: -64,894.33 | I38: x | J38: =F38+G38+H38 -> -13,513,042.67 | K38: x
A39: уменьшение остатков средств, всего | B39: 720 | C39: 720 | D39: 610 | E39: x | F39: 13,276,400.49 | G39: 64,894.33 | H39: 64,894.33 | I39: x | J39: =F39+G39+H39 -> 13,406,189.15 | K39: x
A40: Изменение остатков по внутренним оборотам средств учреждения | B40: 730 | C40: 730 | D40: x | E40: x | F40: =F41+F42 -> -64,894.33 | G40: =G41+G42 -> 0.00 | H40: =H41+H42 -> 64,894.33 | I40: x | J40: =F40+G40+H40 -> 0.00 | K40: x
A41: в том числе: увеличение остатков средств учреждения | B41: 731 | C41: 731 | D41: 510 | E41: x | F41: 0.00 | G41: 64,894.33 | H41: 64,894.33 | I41: x | J41: =F41+G41+H41 -> 129,788.66 | K41: x
A42: уменьшение остатков средств учреждения | B42: 732 | C42: 732 | D42: 610 | E42: x | F42: -64,894.33 | G42: -64,894.33 | H42: 0.00 | I42: x | J42: =F42+G42+H42 -> -129,788.66 | K42: x
A43: Изменение остатков по внутренним расчетам | B43: 820 | C43: 820 | D43: x | E43: =E44+E45 -> 0.00 | F43: 0.00 | G43: 0.00 | H43: 0.00 | I43: 0.00 | J43: 0.00 | K43: =E43-J43 -> 0.00
A44: в том числе: увеличение остатков по внутренним расчетам (Кт 030404510) | B44: 821 | C44: 821 | E44: 0.00 | F44: 0.00 | G44: 0.00 | H44: 0.00 | I44: 0.00 | J44: =F44+G44+H44+I44 -> 0.00 | K44: 0.00
A45: уменьшение остатков по внутренним расчетам (Дт 030404610) | B45: 822 | C45: 822 | E45: 0.00 | F45: 0.00 | G45: 0.00 | H45: 0.00 | I45: 0.00 | J45: =F45+G45+H45+I45 -> 0.00 | K45: 0.00
A46: Изменение остатков расчетов по внутренним привлечениям средств | B46: 830 | C46: 830 | D46: x | E46: =E47+E48 -> 0.00 | F46: 0.00 | G46: 0.00 | H46: 0.00 | I46: 0.00 | J46: 0.00 | K46: 0.00
A47: в том числе: увеличение расчетов по внутреннему привлечению остатков средств (Кт 030406000) | B47: 831 | C47: 831 | E47: 0.00 | F47: 0.00 | G47: 0.00 | H47: 0.00 | I47: 0.00 | J47: =F47+G47+H47+I47 -> 0.00 | K47: 0.00
A48: уменьшение расчетов по внутреннему привлечению остатков средств (Дт 030406000) | B48: 832 | C48: 832 | E48: 0.00 | F48: 0.00 | G48: 0.00 | H48: 0.00 | I48: 0.00 | J48: =F48+G48+H48+I48 -> 0.00 | K48: 0.00
A52: Наименование показателя | C52: Код строки | D52: Код аналитики | E52: Исполнено плановых назначений
E53: через лицевые счета | F53: через банковские счета | G53: через кассу учреждения | H53: некассовыми операциями | I53: Итого
A54: Возвращено остатков субсидий прошлых лет | B54: 910 | C54: 910 | D54: Х | E54: 2,565.76 | F54: 0.00 | G54: 0.00 | H54: 0.00 | I54: =E54+F54+G54+H54 -> 2,565.76 | J54: 0.00 | K54: 0.00
A55: Возвращено расходов прошлых лет | B55: 950 | C55: 950 | E55: 0.00 | F55: 0.00 | G55: 0.00 | H55: 0.00 | I55: =E55+F55+G55+H55 -> 0.00 | J55: 0.00 | K55: 0.00

Sheet СубсидииНаИныеЦели
A2: Наименование показателя | B2: #КодыСтрок | C2: Код строки | D2: Код аналитики | E2: Утверждено плановых назначений | F2: Исполнено плановых назначений | K2: Сумма отклонения
F3: через лицевые счета | G3: через банковские счета | H3: через кассу учреждения | I3: некассовые операции | J3: итого
A4: #КодыСтолбцов | E4: 4 | F4: 5 | G4: 6 | H4: 7 | I4: 8 | J4: 9 | K4: 10
A5: 1 | C5: 2 | D5: 3 | E5: 4 | F5: 5 | G5: 6 | H5: 7 | I5: 8 | J5: 9 | K5: 10
A6: Доходы - всего | B6: 010 | C6: 010 | E6: =E10+E16 -> 157,633.54 | F6: =F10+F16 -> 142,956.04 | G6: =G10+G16 -> 0.00 | H6: =H10+H16 -> 0.00 | I6: =I10+I16 -> 0.00 | J6: =F6+G6+H6+I6 -> 142,956.04 | K6: =E6-J6 -> 14,677.50
A7: Доходы от собственности | B7: 030 | C7: 030 | D7: 120 | E7: x | F7: x | G7: x | H7: x | I7: x | J7: x | K7: x
A8: Доходы от оказания платных услуг (работ) и компенсации затрат | B8: 040 | C8: 040 | D8: 130 | E8: x | F8: x | G8: x | H8: x | I8: x | J8: x | K8: x
A9: Штрафы, пени, неустойки, возмещения ущерба | B9: 050 | C9: 050 | D9: 140 | E9: x | F9: x | G9: x | H9: x | I9: x | J9: x | K9: x
A10: Безвозмездные денежные поступления | B10: 060 | C10: 060 | D10: 150 | E10: 157,633.54 | F10: 142,956.04 | G10: 0.00 | H10: 0.00 | I10: 0.00 | J10: =F10+G10+H10+I10 -> 142,956.04 | K10: =E10-J10 -> 14,677.50
A11: Доходы от выбытия нефинансовых активов | B11: 090 | C11: 090 | D11: 400 | E11: x | F11: x | G11: x | H11: x | I11: x | J11: x | K11: x
A12: в том числе: от выбытий основных средств | B12: 092 | C12: 092 | D12: 410 | E12: x | F12: x | G12: x | H12: x | I12: x | J12: x | K12: x
A13: от выбытий нематериальных активов | B13: 093 | C13: 093 | D13: 420 | E13: x | F13: x | G13: x | H13: x | I13: x | J13: x | K13: x
A14: от выбытий непроизведенных активов | B14: 094 | C14: 094 | D14: 430 | E14: x | F14: x | G14: x | H14: x | I14: x | J14: x | K14: x
A15: от выбытий материальных запасов | B15: 095 | C15: 095 | D15: 440 | E15: x | F15: x | G15: x | H15: x | I15: x | J15: x | K15: x
A16: Прочие доходы | B16: 100 | C16: 100 | D16: 180 | E16: 0.00 | F16: 0.00 | G16: 0.00 | H16: 0.00 | I16: 0.00 | J16: =F16+G16+H16+I16 -> 0.00 | K16: =E16-J16 -> 0.00
A19: Наименование показателя | C19: Код стро- ки | D19: Код аналитики | E19: Утверждено плановых назначений | F19: Исполнено плановых назначений | K19: Сумма отклонения
F20: через лицевые счета | G20: через банковские счета | H20: через кассу учреждения | I20: некассовые операции | J20: итого
A21: 1 | C21: 2 | D21: 3 | E21: 4 | F21: 5 | G21: 6 | H21: 7 | I21: 8 | J21: 9 | K21: 10
A22: Расходы бюджета - всего | B22: 200 | C22: 200 | D22: x | E22: =E23 -> 157,633.54 | F22: 140,688.04 | G22: 0.00 | H22: 0.00 | I22: 0.00 | J22: 140,688.04 | K22: 16,945.50
A23: в том числе: | B23: 210 | C23: 210 | D23: Строки Строки >> | E23: ='@Формулы'!A36 -> 157,633.54 | F23: ='@Формулы'!A37 -> 140,688.04 | G23: ='@Формулы'!A38 -> 0.00 | H23: ='@Формулы'!A39 -> 0.00 | I23: ='@Формулы'!A40 -> 0.00 | J23: ='@Формулы'!A41 -> 140,688.04 | K23: ='@Формулы'!A42 -> 16,945.50
A24: Результат исполнения бюджета (дефицит, профицит) | B24: 450 | C24: 450 | D24: x | E24: =E6-E22 -> 0.00 | F24: 2,268.00 | G24: 0.00 | H24: 0.00 | I24: 0.00 | J24: 2,268.00 | K24: x
A27: Наименование показателя | C27: Код строки | D27: Код аналитики | E27: Утверждено плановых назначений | F27: Исполнено плановых назначений | K27: Сумма отклонения
F28: через лицевые счета | G28: через банковские счета | H28: через кассу учреждения | I28: некассовые операции | J28: итого
A29: 1 | C29: 2 | D29: 3 | E29: 4 | F29: 5 | G29: 6 | H29: 7 | I29: 8 | J29: 9 | K29: 10
A30: Источники финансирования дефицита средств - всего | B30: 500 | C30: 500 | D30: x | E30: =E31+E32+E36+E42+E45 -> 0.00 | F30: =F31+F32+F36+F42+F45+F39 -> -2,268.00 | G30: =G31+G32+G36+G42+G45+G39 -> 0.00 | H30: =H31+H32+H36+H42+H45+H39 -> 0.00 | I30: =I31+I32+I42+I45 -> 0.00 | J30: =F30+G30+H30+I30 -> -2,268.00 | K30: =E30-J30 -> 2,268.00
A31: в том числе: внутренние источники | B31: 520 | C31: 520 | D31: Строки Строки >> | E31: ='@Формулы'!A43 -> 0.00 | F31: ='@Формулы'!A44 -> 0.00 | G31: ='@Формулы'!A45 -> 0.00 | H31: ='@Формулы'!A46 -> 0.00 | I31: ='@Формулы'!A47 -> 0.00 | J31: ='@Формулы'!A48 -> 0.00 | K31: ='@Формулы'!A49 -> 0.00
A32: Движение денежных средств | B32: 590 | C32: 590 | E32: =E33+E34 -> 0.00 | F32: 0.00 | G32: 0.00 | H32: 0.00 | I32: 0.00 | J32: 0.00 | K32: 0.00
A33: поступление денежных средств прочие | B33: 591 | C33: 591 | D33: 510 | E33: 0.00 | F33: 0.00 | G33: 0.00 | H33: 0.00 | I33: 0.00 | J33: =F33+G33+H33+I33 -> 0.00 | K33: =E33-J33 -> 0.00
A34: выбытие денежных средств | B34: 592 | C34: 592 | D34: 610 | E34: 0.00 | F34: 0.00 | G34: 0.00 | H34: 0.00 | I34: 0.00 | J34: =F34+G34+H34+I34 -> 0.00 | K34: =E34-J34 -> 0.00
A35: Внешние источники | B35: 620 | C35: 620 | E35: x | F35: x | G35: x | H35: x | I35: x | J35: x | K35: x
A36: Изменение остатков средств | B36: 700 | C36: 700 | D36: x | E36: 0.00 | F36: =F37+F38 -> -2,268.00 | G36: =G37+G38 -> 0.00 | H36: =H37+H38 -> 0.00 | I36: x | J36: =J37+J38 -> -2,268.00 | K36: =E36-J36 -> 2,268.00
A37: увеличение остатков средств, всего | B37: 710 | C37: 710 | D37: 510 | E37: x | F37: -142,956.04 | G37: 0.00 | H37: 0.00 | I37: x | J37: =F37+G37+H37 -> -142,956.04 | K37: x
A38: уменьшение остатков средств, всего | B38: 720 | C38: 720 | D38: 610 | E38: x | F38: 140,688.04 | G38: 0.00 | H38: 0.00 | I38: x | J38: =F38+G38+H38 -> 140,688.04 | K38: x
A39: Изменение остатков по внутренним оборотам средств учреждения | B39: 730 | C39: 730 | D39: x | E39: x | F39: =F40+F41 -> 0.00 | G39: =G40+G41 -> 0.00 | H39: =H40+H41 -> 0.00 | I39: x | J39: =F39+G39+H39 -> 0.00 | K39: x
A40: в том числе: увеличение остатков средств учреждения | B40: 731 | C40: 731 | D40: 510 | E40: x | F40: 0.00 | G40: 0.00 | H40: 0.00 | I40: x | J40: =F40+G40+H40 -> 0.00 | K40: x
A41: уменьшение остатков средств учреждения | B41: 732 | C41: 732 | D41: 610 | E41: x | F41: 0.00 | G41: 0.00 | H41: 0.00 | I41: x | J41: =F41+G41+H41 -> 0.00 | K41: x
A42: Изменение остатков по внутренним расчетам | B42: 820 | C42: 820 | D42: x | E42: =E43+E44 -> 0.00 | F42: 0.00 | G42: 0.00 | H42: 0.00 | I42: 0.00 | J42: 0.00 | K42: =E42-J42 -> 0.00
A43: в том числе: увеличение остатков по внутренним расчетам (Кт 030404510) | B43: 821 | C43: 821 | E43: 0.00 | F43: 0.00 | G43: 0.00 | H43: 0.00 | I43: 0.00 | J43: =F43+G43+H43+I43 -> 0.00 | K43: 0.00
A44: уменьшение остатков по внутренним расчетам (Дт 030404610) | B44: 822 | C44: 822 | E44: 0.00 | F44: 0.00 | G44: 0.00 | H44: 0.00 | I44: 0.00 | J44: =F44+G44+H44+I44 -> 0.00 | K44: 0.00
A45: Изменение остатков расчетов по внутренним привлечениям средств | B45: 830 | C45: 830 | D45: x | E45: =E46+E47 -> 0.00 | F45: 0.00 | G45: 0.00 | H45: 0.00 | I45: 0.00 | J45: 0.00 | K45: 0.00
A46: в том числе: увеличение расчетов по внутреннему привлечению остатков средств (Кт 030406000) | B46: 831 | C46: 831 | E46: 0.00 | F46: 0.00 | G46: 0.00 | H46: 0.00 | I46: 0.00 | J46: =F46+G46+H46+I46 -> 0.00 | K46: 0.00
A47: уменьшение расчетов по внутреннему привлечению остатков средств (Дт 030406000) | B47: 832 | C47: 832 | E47: 0.00 | F47: 0.00 | G47: 0.00 | H47: 0.00 | I47: 0.00 | J47: =F47+G47+H47+I47 -> 0.00 | K47: 0.00
A51: Наименование показателя | C51: Код строки | D51: Код аналитики | E51: Исполнено плановых назначений
E52: через лицевые счета | F52: через банковские счета | G52: через кассу учреждения | H52: некассовыми операциями | I52: Итого
A53: Возвращено остатков субсидий прошлых лет | B53: 910 | C53: 910 | D53: Х | E53: 0.00 | F53: 0.00 | G53: 0.00 | H53: 0.00 | I53: =E53+F53+G53+H53 -> 0.00 | J53: 0.00 | K53: 0.00
A54: Возвращено расходов прошлых лет | B54: 950 | C54: 950 | E54: 0.00 | F54: 0.00 | G54: 0.00 | H54: 0.00 | I54: =E54+F54+G54+H54 -> 0.00 | J54: 0.00 | K54: 0.00

Sheet БюджетныеИнвестиции
A2: Наименование показателя | B2: #КодыСтрок | C2: Код строки | D2: Код аналитики | E2: Утверждено плановых назначений | F2: Исполнено плановых назначений | K2: Сумма отклонения
F3: через лицевые счета | G3: через банковские счета | H3: через кассу учреждения | I3: некассовые операции | J3: итого
A4: #КодыСтолбцов | E4: 4 | F4: 5 | G4: 6 | H4: 7 | I4: 8 | J4: 9 | K4: 10
A5: 1 | C5: 2 | D5: 3 | E5: 4 | F5: 5 | G5: 6 | H5: 7 | I5: 8 | J5: 9 | K5: 10
A6: Доходы - всего | B6: 010 | C6: 010 | E6: =E10+E16 -> 0.00 | F6: =F10+F16 -> 0.00 | G6: =G10+G16 -> 0.00 | H6: =H10+H16 -> 0.00 | I6: =I10+I16 -> 0.00 | J6: =F6+G6+H6+I6 -> 0.00 | K6: =E6-J6 -> 0.00
A7: Доходы от собственности | B7: 030 | C7: 030 | D7: 120 | E7: x | F7: x | G7: x | H7: x | I7: x | J7: x | K7: x
A8: Доходы от оказания платных услуг (работ) и компенсации затрат | B8: 040 | C8: 040 | D8: 130 | E8: x | F8: x | G8: x | H8: x | I8: x | J8: x | K8: x
A9: Штрафы, пени, неустойки, возмещения ущерба | B9: 050 | C9: 050 | D9: 140 | E9: x | F9: x | G9: x | H9: x | I9: x | J9: x | K9: x
A10: Безвозмездные денежные поступления | B10: 060 | C10: 060 | D10: 150 | E10: 0.00 | F10: 0.00 | G10: 0.00 | H10: 0.00 | I10: 0.00 | J10: =F10+G10+H10+I10 -> 0.00 | K10: =E10-J10 -> 0.00
A11: Доходы от выбытия нефинансовых активов | B11: 090 | C11: 090 | D11: 400 | E11: x | F11: x | G11: x | H11: x | I11: x | J11: x | K11: x
A12: в том числе: от выбытий основных средств | B12: 092 | C12: 092 | D12: 410 | E12: x | F12: x | G12: x | H12: x | I12: x | J12: x | K12: x
A13: от выбытий нематериальных активов | B13: 093 | C13: 093 | D13: 420 | E13: x | F13: x | G13: x | H13: x | I13: x | J13: x | K13: x
A14: от выбытий непроизведенных активов | B14: 094 | C14: 094 | D14: 430 | E14: x | F14: x | G14: x | H14: x | I14: x | J14: x | K14: x
A15: от выбытий материальных запасов | B15: 095 | C15: 095 | D15: 440 | E15: x | F15: x | G15: x | H15: x | I15: x | J15: x | K15: x
A16: Прочие доходы | B16: 100 | C16: 100 | D16: 180 | E16: 0.00 | F16: 0.00 | G16: 0.00 | H16: 0.00 | I16: 0.00 | J16: =F16+G16+H16+I16 -> 0.00 | K16: =E16-J16 -> 0.00
A19: Наименование показателя | C19: Код стро- ки | D19: Код аналитики | E19: Утверждено плановых назначений | F19: Исполнено плановых назначений | K19: Сумма отклонения
F20: через лицевые счета | G20: через банковские счета | H20: через кассу учреждения | I20: некассовые операции | J20: итого
A21: 1 | C21: 2 | D21: 3 | E21: 4 | F21: 5 | G21: 6 | H21: 7 | I21: 8 | J21: 9 | K21: 10
A22: Расходы бюджета - всего | B22: 200 | C22: 200 | D22: x | E22: =E23 -> 0.00 | F22: 0.00 | G22: 0.00 | H22: 0.00 | I22: 0.00 | J22: 0.00 | K22: 0.00
A23: в том числе: | B23: 210 | C23: 210 | D23: Строки Строки >> | E23: ='@Формулы'!A50 -> 0.00 | F23: ='@Формулы'!A51 -> 0.00 | G23: ='@Формулы'!A52 -> 0.00 | H23: ='@Формулы'!A53 -> 0.00 | I23: ='@Формулы'!A54 -> 0.00 | J23: ='@Формулы'!A55 -> 0.00 | K23: ='@Формулы'!A56 -> 0.00
A24: Результат исполнения бюджета (дефицит, профицит) | B24: 450 | C24: 450 | D24: x | E24: =E6-E22 -> 0.00 | F24: 0.00 | G24: 0.00 | H24: 0.00 | I24: 0.00 | J24: 0.00 | K24: x
A27: Наименование показателя | C27: Код строки | D27: Код аналитики | E27: Утверждено плановых назначений | F27: Исполнено плановых назначений | K27: Сумма отклонения
F28: через лицевые счета | G28: через банковские счета | H28: через кассу учреждения | I28: некассовые операции | J28: итого
A29: 1 | C29: 2 | D29: 3 | E29: 4 | F29: 5 | G29: 6 | H29: 7 | I29: 8 | J29: 9 | K29: 10
A30: Источники финансирования дефицита средств - всего | B30: 500 | C30: 500 | D30: x | E30: =E31+E32+E36+E42+E45 -> 0.00 | F30: =F31+F32+F36+F42+F45+F39 -> 0.00 | G30: =G31+G32+G36+G42+G45+G39 -> 0.00 | H30: =H31+H32+H36+H42+H45+H39 -> 0.00 | I30: =I31+I32+I42+I45 -> 0.00 | J30: =F30+G30+H30+I30 -> 0.00 | K30: =E30-J30 -> 0.00
A31: в том числе: внутренние источники | B31: 520 | C31: 520 | D31: Строки Строки >> | E31: ='@Формулы'!A57 -> 0.00 | F31: ='@Формулы'!A58 -> 0.00 | G31: ='@Формулы'!A59 -> 0.00 | H31: ='@Формулы'!A60 -> 0.00 | I31: ='@Формулы'!A61 -> 0.00 | J31: ='@Формулы'!A62 -> 0.00 | K31: ='@Формулы'!A63 -> 0.00
A32: Движение денежных средств | B32: 590 | C32: 590 | E32: =E33+E34 -> 0.00 | F32: 0.00 | G32: 0.00 | H32: 0.00 | I32: 0.00 | J32: 0.00 | K32: 0.00
A33: поступление денежных средств прочие | B33: 591 | C33: 591 | D33: 510 | E33: 0.00 | F33: 0.00 | G33: 0.00 | H33: 0.00 | I33: 0.00 | J33: =F33+G33+H33+I33 -> 0.00 | K33: =E33-J33 -> 0.00
A34: выбытие денежных средств | B34: 592 | C34: 592 | D34: 610 | E34: 0.00 | F34: 0.00 | G34: 0.00 | H34: 0.00 | I34: 0.00 | J34: =F34+G34+H34+I34 -> 0.00 | K34: =E34-J34 -> 0.00
A35: Внешние источники | B35: 620 | C35: 620 | E35: x | F35: x | G35: x | H35: x | I35: x | J35: x | K35: x
A36: Изменение остатков средств | B36: 700 | C36: 700 | D36: x | E36: 0.00 | F36: =F37+F38 -> 0.00 | G36: =G37+G38 -> 0.00 | H36: =H37+H38 -> 0.00 | I36: x | J36: =J37+J38 -> 0.00 | K36: =E36-J36 -> 0.00
A37: увеличение остатков средств, всего | B37: 710 | C37: 710 | D37: 510 | E37: x | F37: 0.00 | G37: 0.00 | H37: 0.00 | I37: x | J37: =F37+G37+H37 -> 0.00 | K37: x
A38: уменьшение остатков средств, всего | B38: 720 | C38: 720 | D38: 610 | E38: x | F38: 0.00 | G38: 0.00 | H38: 0.00 | I38: x | J38: =F38+G38+H38 -> 0.00 | K38: x
A39: Изменение остатков по внутренним оборотам средств учреждения | B39: 730 | C39: 730 | D39: x | E39: x | F39: =F40+F41 -> 0.00 | G39: =G40+G41 -> 0.00 | H39: =H40+H41 -> 0.00 | I39: x | J39: =F39+G39+H39 -> 0.00 | K39: x
A40: в том числе: увеличение остатков средств учреждения | B40: 731 | C40: 731 | D40: 510 | E40: x | F40: 0.00 | G40: 0.00 | H40: 0.00 | I40: x | J40: =F40+G40+H40 -> 0.00 | K40: x
A41: уменьшение остатков средств учреждения | B41: 732 | C41: 732 | D41: 610 | E41: x | F41: 0.00 | G41: 0.00 | H41: 0.00 | I41: x | J41: =F41+G41+H41 -> 0.00 | K41: x
A42: Изменение остатков по внутренним расчетам | B42: 820 | C42: 820 | D42: x | E42: =E43+E44 -> 0.00 | F42: 0.00 | G42: 0.00 | H42: 0.00 | I42: 0.00 | J42: 0.00 | K42: =E42-J42 -> 0.00
A43: в том числе: увеличение остатков по внутренним расчетам (Кт 030404510) | B43: 821 | C43: 821 | E43: 0.00 | F43: 0.00 | G43: 0.00 | H43: 0.00 | I43: 0.00 | J43: =F43+G43+H43+I43 -> 0.00 | K43: 0.00
A44: уменьшение остатков по внутренним расчетам (Дт 030404610) | B44: 822 | C44: 822 | E44: 0.00 | F44: 0.00 | G44: 0.00 | H44: 0.00 | I44: 0.00 | J44: =F44+G44+H44+I44 -> 0.00 | K44: 0.00
A45: Изменение остатков расчетов по внутренним привлечениям средств | B45: 830 | C45: 830 | D45: x | E45: =E46+E47 -> 0.00 | F45: 0.00 | G45: 0.00 | H45: 0.00 | I45: 0.00 | J45: 0.00 | K45: 0.00
A46: в том числе: увеличение расчетов по внутреннему привлечению остатков средств (Кт 030406000) | B46: 831 | C46: 831 | E46: 0.00 | F46: 0.00 | G46: 0.00 | H46: 0.00 | I46: 0.00 | J46: =F46+G46+H46+I46 -> 0.00 | K46: 0.00
A47: уменьшение расчетов по внутреннему привлечению остатков средств (Дт 030406000) | B47: 832 | C47: 832 | E47: 0.00 | F47: 0.00 | G47: 0.00 | H47: 0.00 | I47: 0.00 | J47: =F47+G47+H47+I47 -> 0.00 | K47: 0.00
A51: Наименование показателя | C51: Код строки | D51: Код аналитики | E51: Исполнено плановых назначений
E52: через лицевые счета | F52: через банковские счета | G52: через кассу учреждения | H52: некассовыми операциями | I52: Итого
A53: Возвращено остатков субсидий прошлых лет | B53: 910 | C53: 910 | D53: Х | E53: 0.00 | F53: 0.00 | G53: 0.00 | H53: 0.00 | I53: =E53+F53+G53+H53 -> 0.00 | J53: 0.00 | K53: 0.00
A54: Возвращено расходов прошлых лет | B54: 950 | C54: 950 | E54: 0.00 | F54: 0.00 | G54: 0.00 | H54: 0.00 | I54: =E54+F54+G54+H54 -> 0.00 | J54: 0.00 | K54: 0.00

Sheet СредстваВРамкахОМС
A2: Наименование показателя | B2: #КодыСтрок | C2: Код строки | D2: Код аналитики | E2: Утверждено плановых назначений | F2: Исполнено плановых назначений | K2: Сумма отклонения
F3: через финансовые органы | G3: через банковские счета | H3: через кассу учреждения | I3: некассовые операции | J3: итого
A4: #КодыСтолбцов | E4: 4 | F4: 5 | G4: 6 | H4: 7 | I4: 8 | J4: 9 | K4: 10
A5: 1 | C5: 2 | D5: 3 | E5: 4 | F5: 5 | G5: 6 | H5: 7 | I5: 8 | J5: 9 | K5: 10
A6: Доходы - всего | B6: 010 | C6: 010 | E6: =E7+E8+E9+E11+E16+E10 -> 0.00 | F6: =F7+F8+F9+F11+F16+F10 -> 0.00 | G6: =G7+G8+G9+G11+G16+G10 -> 0.00 | H6: =H7+H8+H9+H11+H16+H10 -> 0.00 | I6: =I7+I8+I9+I11+I16+I10 -> 0.00 | J6: =F6+G6+H6+I6 -> 0.00 | K6: =E6-J6 -> 0.00
A7: Доходы от собственности | B7: 030 | C7: 030 | D7: 120 | E7: 0.00 | F7: 0.00 | G7: 0.00 | H7: 0.00 | I7: 0.00 | J7: 0.00 | K7: =E7-J7 -> 0.00
A8: Доходы от оказания платных услуг (работ) и компенсации затрат | B8: 040 | C8: 040 | D8: 130 | E8: 0.00 | F8: 0.00 | G8: 0.00 | H8: 0.00 | I8: 0.00 | J8: 0.00 | K8: =E8-J8 -> 0.00
A9: Штрафы, пени, неустойки, возмещения ущерба | B9: 050 | C9: 050 | D9: 140 | E9: 0.00 | F9: 0.00 | G9: 0.00 | H9: 0.00 | I9: 0.00 | J9: 0.00 | K9: =E9-J9 -> 0.00
A10: Безвозмездные денежные поступления | B10: 060 | C10: 060 | D10: 150 | E10: 0.00 | F10: 0.00 | G10: 0.00 | H10: 0.00 | I10: 0.00 | J10: 0.00 | K10: =E10-J10 -> 0.00
A11: Доходы от выбытия нефинансовых активов | B11: 090 | C11: 090 | D11: 400 | E11: =E12+E13+E14+E15 -> 0.00 | F11: =F12+F13+F14+F15 -> 0.00 | G11: =G12+G13+G14+G15 -> 0.00 | H11: =H12+H13+H14+H15 -> 0.00 | I11: =I12+I13+I14+I15 -> 0.00 | J11: 0.00 | K11: =K12+K13+K14+K15 -> 0.00
A12: в том числе: от выбытий основных средств | B12: 092 | C12: 092 | D12: 410 | E12: 0.00 | F12: 0.00 | G12: 0.00 | H12: 0.00 | I12: 0.00 | J12: 0.00 | K12: =E12-J12 -> 0.00
A13: от выбытий нематериальных активов | B13: 093 | C13: 093 | D13: 420 | E13: 0.00 | F13: 0.00 | G13: 0.00 | H13: 0.00 | I13: 0.00 | J13: 0.00 | K13: =E13-J13 -> 0.00
A14: от выбытий непроизведенных активов | B14: 094 | C14: 094 | D14: 430 | E14: 0.00 | F14: 0.00 | G14: 0.00 | H14: 0.00 | I14: 0.00 | J14: 0.00 | K14: =E14-J14 -> 0.00
A15: от выбытий материальных запасов | B15: 095 | C15: 095 | D15: 440 | E15: 0.00 | F15: 0.00 | G15: 0.00 | H15: 0.00 | I15: 0.00 | J15: 0.00 | K15: =E15-J15 -> 0.00
A16: Прочие доходы | B16: 100 | C16: 100 | D16: 180 | E16: 0.00 | F16: 0.00 | G16: 0.00 | H16: 0.00 | I16: 0.00 | J16: 0.00 | K16: =E16-J16 -> 0.00
A20: Наименование показателя | C20: Код стро- ки | D20: Код аналитики | E20: Утверждено плановых назначений | F20: Исполнено плановых назначений | K20: Сумма отклонения
F21: через финансовые органы | G21: через банковские счета | H21: через кассу учреждения | I21: некассовые операции | J21: итого
A22: 1 | C22: 2 | D22: 3 | E22: 4 | F22: 5 | G22: 6 | H22: 7 | I22: 8 | J22: 9 | K22: 10
A23: Расходы бюджета - всего | B23: 200 | C23: 200 | D23: x | E23: =E24 -> 0.00 | F23: 0.00 | G23: 0.00 | H23: 0.00 | I23: 0.00 | J23: 0.00 | K23: 0.00
A24: в том числе: | B24: 210 | C24: 210 | D24: Строки Строки >> | E24: ='@Формулы'!A64 -> 0.00 | F24: ='@Формулы'!A65 -> 0.00 | G24: ='@Формулы'!A66 -> 0.00 | H24: ='@Формулы'!A67 -> 0.00 | I24: ='@Формулы'!A68 -> 0.00 | J24: ='@Формулы'!A69 -> 0.00 | K24: ='@Формулы'!A70 -> 0.00
A25: Результат исполнения бюджета (дефицит, профицит) | B25: 450 | C25: 450 | D25: x | E25: =E6-E23 -> 0.00 | F25: 0.00 | G25: 0.00 | H25: 0.00 | I25: 0.00 | J25: 0.00 | K25: x
A28: Наименование показателя | C28: Код строки | D28: Код аналитики | E28: Утверждено плановых назначений | F28: Исполнено плановых назначений | K28: Сумма отклонения
F29: через финансовые органы | G29: через банковские счета | H29: через кассу учреждения | I29: некассовые операции | J29: итого
A30: 1 | C30: 2 | D30: 3 | E30: 4 | F30: 5 | G30: 6 | H30: 7 | I30: 8 | J30: 9 | K30: 10
A31: Источники финансирования дефицита средств - всего | B31: 500 | C31: 500 | D31: x | E31: =E32+E33+E37+E43+E46 -> 0.00 | F31: =F32+F33+F37+F43+F46+F40 -> 0.00 | G31: =G32+G33+G37+G43+G46+G40 -> 0.00 | H31: =H32+H33+H37+H43+H46+H40 -> 0.00 | I31: =I32+I33+I43+I46 -> 0.00 | J31: =F31+G31+H31+I31 -> 0.00 | K31: =E31-J31 -> 0.00
A32: в том числе: внутренние источники | B32: 520 | C32: 520 | D32: Строки Строки >> | E32: ='@Формулы'!A71 -> 0.00 | F32: ='@Формулы'!A72 -> 0.00 | G32: ='@Формулы'!A73 -> 0.00 | H32: ='@Формулы'!A74 -> 0.00 | I32: ='@Формулы'!A75 -> 0.00 | J32: ='@Формулы'!A76 -> 0.00 | K32: ='@Формулы'!A77 -> 0.00
A33: Движение денежных средств | B33: 590 | C33: 590 | E33: =E34+E35 -> 0.00 | F33: 0.00 | G33: 0.00 | H33: 0.00 | I33: 0.00 | J33: 0.00 | K33: 0.00
A34: поступление денежных средств прочие | B34: 591 | C34: 591 | D34: 510 | E34: 0.00 | F34: 0.00 | G34: 0.00 | H34: 0.00 | I34: 0.00 | J34: =F34+G34+H34+I34 -> 0.00 | K34: =E34-J34 -> 0.00
A35: выбытие денежных средств | B35: 592 | C35: 592 | D35: 610 | E35: 0.00 | F35: 0.00 | G35: 0.00 | H35: 0.00 | I35: 0.00 | J35: =F35+G35+H35+I35 -> 0.00 | K35: =E35-J35 -> 0.00
A36: Внешние источники | B36: 620 | C36: 620 | E36: x | F36: x | G36: x | H36: x | I36: x | J36: x | K36: x
A37: Изменение остатков средств | B37: 700 | C37: 700 | D37: x | E37: 0.00 | F37: =F38+F39 -> 0.00 | G37: =G38+G39 -> 0.00 | H37: =H38+H39 -> 0.00 | I37: x | J37: =J38+J39 -> 0.00 | K37: =E37-J37 -> 0.00
A38: увеличение остатков средств, всего | B38: 710 | C38: 710 | D38: 510 | E38: x | F38: 0.00 | G38: 0.00 | H38: 0.00 | I38: x | J38: =F38+G38+H38 -> 0.00 | K38: x
A39: уменьшение остатков средств, всего | B39: 720 | C39: 720 | D39: 610 | E39: x | F39: 0.00 | G39: 0.00 | H39: 0.00 | I39: x | J39: =F39+G39+H39 -> 0.00 | K39: x
A40: Изменение остатков по внутренним оборотам средств учреждения | B40: 730 | C40: 730 | D40: x | E40: x | F40: =F41+F42 -> 0.00 | G40: =G41+G42 -> 0.00 | H40: =H41+H42 -> 0.00 | I40: x | J40: =F40+G40+H40 -> 0.00 | K40: x
A41: в том числе: увеличение остатков средств учреждения | B41: 731 | C41: 731 | D41: 510 | E41: x | F41: 0.00 | G41: 0.00 | H41: 0.00 | I41: x | J41: =F41+G41+H41 -> 0.00 | K41: x
A42: уменьшение остатков средств учреждения | B42: 732 | C42: 732 | D42: 610 | E42: x | F42: 0.00 | G42: 0.00 | H42: 0.00 | I42: x | J42: =F42+G42+H42 -> 0.00 | K42: x
A43: Изменение остатков по внутренним расчетам | B43: 820 | C43: 820 | D43: x | E43: =E44+E45 -> 0.00 | F43: 0.00 | G43: 0.00 | H43: 0.00 | I43: 0.00 | J43: 0.00 | K43: =E43-J43 -> 0.00
A44: в том числе: увеличение остатков по внутренним расчетам (Кт 030404510) | B44: 821 | C44: 821 | E44: 0.00 | F44: 0.00 | G44: 0.00 | H44: 0.00 | I44: 0.00 | J44: =F44+G44+H44+I44 -> 0.00 | K44: 0.00
A45: уменьшение остатков по внутренним расчетам (Дт 030404610) | B45: 822 | C45: 822 | E45: 0.00 | F45: 0.00 | G45: 0.00 | H45: 0.00 | I45: 0.00 | J45: =F45+G45+H45+I45 -> 0.00 | K45: 0.00
A46: Изменение остатков расчетов по внутренним привлечениям средств | B46: 830 | C46: 830 | D46: x | E46: =E47+E48 -> 0.00 | F46: 0.00 | G46: 0.00 | H46: 0.00 | I46: 0.00 | J46: 0.00 | K46: 0.00
A47: в том числе: увеличение расчетов по внутреннему привлечению остатков средств (Кт 030406000) | B47: 831 | C47: 831 | E47: 0.00 | F47: 0.00 | G47: 0.00 | H47: 0.00 | I47: 0.00 | J47: =F47+G47+H47+I47 -> 0.00 | K47: 0.00
A48: уменьшение расчетов по внутреннему привлечению остатков средств (Дт 030406000) | B48: 832 | C48: 832 | E48: 0.00 | F48: 0.00 | G48: 0.00 | H48: 0.00 | I48: 0.00 | J48: =F48+G48+H48+I48 -> 0.00 | K48: 0.00
A52: Наименование показателя | C52: Код строки | D52: Код аналитики | E52: Исполнено плановых назначений
E53: через лицевые счета | F53: через банковские счета | G53: через кассу учреждения | H53: некассовыми операциями | I53: Итого
A54: Возвращено остатков субсидий прошлых лет | B54: 910 | C54: 910 | D54: Х | E54: 0.00 | F54: 0.00 | G54: 0.00 | H54: 0.00 | I54: =E54+F54+G54+H54 -> 0.00 | J54: 0.00 | K54: 0.00
A55: Возвращено расходов прошлых лет | B55: 950 | C55: 950 | E55: 0.00 | F55: 0.00 | G55: 0.00 | H55: 0.00 | I55: =E55+F55+G55+H55 -> 0.00 | J55: 0.00 | K55: 0.00

Sheet Расходы200_02 (hidden)
B2: Наименование показателя | C2: Код аналитики | D2: КОСГУ | E2: Утверждено плановых назначений | F2: Исполнено плановых назначений | K2: Сумма отклонения
F3: через лицевые счета | G3: через банковские счета | H3: через кассу учреждения | I3: некассовые операции | J3: итого
A4: #КодыСтолбцов | B4: Наименование | C4: КОСГУ | D4: 1 | E4: 4 | F4: 5 | G4: 6 | H4: 7 | I4: 8 | J4: 9 | K4: 10
C5: 2 | D5: 3 | E5: 4 | F5: 5 | G5: 6 | H5: 7 | I5: 8 | J5: 9 | K5: 10
B6: #=ПолучитьСвойство([КОСГУ],Наименование) | J6: #=[5]+[6]+[7]+[8] | K6: #=[4]-[9]
B7: Прочая закупка товаров, работ и услуг для обеспечения государственных (муниципальных) нужд | C7: 200·240·244 | D7: 342 | E7: 331,353.32 | F7: 185,191.77 | G7: 0.00 | H7: 0.00 | I7: 0.00 | J7: =F7+G7+H7+I7 -> 185,191.77 | K7: =E7-J7 -> 146,161.55
B8: Прочая закупка товаров, работ и услуг для обеспечения государственных (муниципальных) нужд | C8: 200·240·244 | D8: 346 | E8: 7,060.28 | F8: 3,000.00 | G8: 0.00 | H8: 0.00 | I8: 0.00 | J8: =F8+G8+H8+I8 -> 3,000.00 | K8: =E8-J8 -> 4,060.28
B9: Прочая закупка товаров, работ и услуг для обеспечения государственных (муниципальных) нужд | C9: 200·240·244 | D9: 310 | E9: 5,669.00 | F9: 4,900.00 | G9: 0.00 | H9: 0.00 | I9: 0.00 | J9: =F9+G9+H9+I9 -> 4,900.00 | K9: =E9-J9 -> 769.00

Sheet Расходы200_04 (hidden)
B2: Наименование показателя | C2: Код аналитики | D2: КОСГУ | E2: Утверждено плановых назначений | F2: Исполнено плановых назначений | K2: Сумма отклонения
F3: через лицевые счета | G3: через банковские счета | H3: через кассу учреждения | I3: некассовые операции | J3: итого
A4: #КодыСтолбцов | B4: Наименование | C4: КОСГУ | D4: 1 | E4: 4 | F4: 5 | G4: 6 | H4: 7 | I4: 8 | J4: 9 | K4: 10
C5: 2 | D5: 3 | E5: 4 | F5: 5 | G5: 6 | H5: 7 | I5: 8 | J5: 9 | K5: 10
B6: #=ПолучитьСвойство([КОСГУ],Наименование) | J6: #=[5]+[6]+[7]+[8] | K6: #=[4]-[9]
B7: Взносы по обязательному социальному страхованию на выплаты по оплате труда работников и иные выплаты работникам учреждений | C7: 100·110·119 | D7: 213 | E7: 2,550,778.13 | F7: 2,550,778.13 | G7: 0.00 | H7: 0.00 | I7: 0.00 | J7: =F7+G7+H7+I7 -> 2,550,778.13 | K7: =E7-J7 -> 0.00
B8: Прочая закупка товаров, работ и услуг для обеспечения государственных (муниципальных) нужд | C8: 200·240·244 | D8: 221 | E8: 16,869.00 | F8: 16,869.00 | G8: 0.00 | H8: 0.00 | I8: 0.00 | J8: 16,869.00 | K8: 0.00
B9: Прочая закупка товаров, работ и услуг для обеспечения государственных (муниципальных) нужд | C9: 200·240·244 | D9: 223 | E9: 975,622.64 | F9: 923,188.96 | G9: 0.00 | H9: 0.00 | I9: 0.00 | J9: 923,188.96 | K9: 52,433.68
B10: Иные выплаты персоналу учреждений, за исключением фонда оплаты труда | C10: 100·110·112 | D10: 226 | E10: 24,660.00 | F10: 0.00 | G10: 0.00 | H10: 24,660.00 | I10: 0.00 | J10: 24,660.00 | K10: 0.00
B11: Прочая закупка товаров, работ и услуг для обеспечения государственных (муниципальных) нужд | C11: 200·240·244 | D11: 310 | E11: 28,760.00 | F11: 28,760.00 | G11: 0.00 | H11: 0.00 | I11: 0.00 | J11: 28,760.00 | K11: 0.00
B12: Прочая закупка товаров, работ и услуг для обеспечения государственных (муниципальных) нужд | C12: 200·240·244 | D12: 342 | E12: 298,925.70 | F12: 249,477.30 | G12: 0.00 | H12: 0.00 | I12: 0.00 | J12: 249,477.30 | K12: 49,448.40
B13: Прочая закупка товаров, работ и услуг для обеспечения государственных (муниципальных) нужд | C13: 200·240·244 | D13: 344 | E13: 308,067.00 | F13: 308,067.00 | G13: 0.00 | H13: 0.00 | I13: 0.00 | J13: 308,067.00 | K13: 0.00
B14: Уплата налога на имущество организаций и земельного налога | C14: 800·850·851 | D14: 291 | E14: 189,779.00 | F14: 189,779.00 | G14: 0.00 | H14: 0.00 | I14: 0.00 | J14: 189,779.00 | K14: 0.00
B15: Фонд оплаты труда учреждений | C15: 100·110·111 | D15: 211 | E15: 8,477,960.12 | F15: 8,473,089.66 | G15: 0.00 | H15: 4,870.46 | I15: 0.00 | J15: 8,477,960.12 | K15: 0.00
B16: Прочая закупка товаров, работ и услуг для обеспечения государственных (муниципальных) нужд | C16: 200·240·244 | D16: 225 | E16: 301,654.22 | F16: 273,760.35 | G16: 0.00 | H16: 27,893.87 | I16: 0.00 | J16: 301,654.22 | K16: 0.00
B17: Прочая закупка товаров, работ и услуг для обеспечения государственных (муниципальных) нужд | C17: 200·240·244 | D17: 226 | E17: 105,250.08 | F17: 96,142.88 | G17: 0.00 | H17: 1,570.00 | I17: 0.00 | J17: 97,712.88 | K17: 7,537.20
B18: Прочая закупка товаров, работ и услуг для обеспечения государственных (муниципальных) нужд | C18: 200·240·244 | D18: 346 | E18: 68,912.80 | F18: 68,912.80 | G18: 0.00 | H18: 0.00 | I18: 0.00 | J18: 68,912.80 | K18: 0.00
B19: Иные выплаты персоналу учреждений, за исключением фонда оплаты труда | C19: 100·110·112 | D19: 212 | E19: 5,900.00 | F19: 0.00 | G19: 0.00 | H19: 5,900.00 | I19: 0.00 | J19: 5,900.00 | K19: 0.00
B20: Фонд оплаты труда учреждений | C20: 100·110·111 | D20: 266 | E20: 25,015.32 | F20: 25,015.32 | G20: 0.00 | H20: 0.00 | I20: 0.00 | J20: 25,015.32 | K20: 0.00
B21: Прочая закупка товаров, работ и услуг для обеспечения государственных (муниципальных) нужд | C21: 200·240·244 | D21: 349 | E21: 5,100.00 | F21: 5,100.00 | G21: 0.00 | H21: 0.00 | I21: 0.00 | J21: 5,100.00 | K21: 0.00

Sheet Расходы200_05 (hidden)
B2: Наименование показателя | C2: Код аналитики | D2: КОСГУ | E2: Утверждено плановых назначений | F2: Исполнено плановых назначений | K2: Сумма отклонения
F3: через лицевые счета | G3: через банковские счета | H3: через кассу учреждения | I3: некассовые операции | J3: итого
A4: #КодыСтолбцов | B4: Наименование | C4: КОСГУ | D4: 1 | E4: 4 | F4: 5 | G4: 6 | H4: 7 | I4: 8 | J4: 9 | K4: 10
C5: 2 | D5: 3 | E5: 4 | F5: 5 | G5: 6 | H5: 7 | I5: 8 | J5: 9 | K5: 10
B6: #=ПолучитьСвойство([КОСГУ],Наименование) | J6: #=[5]+[6]+[7]+[8] | K6: #=[4]-[9]
B7: Прочая закупка товаров, работ и услуг для обеспечения государственных (муниципальных) нужд | C7: 200·240·244 | D7: 346 | E7: 21,397.60 | F7: 5,736.00 | G7: 0.00 | H7: 0.00 | I7: 0.00 | J7: =F7+G7+H7+I7 -> 5,736.00 | K7: =E7-J7 -> 15,661.60
B8: Прочая закупка товаров, работ и услуг для обеспечения государственных (муниципальных) нужд | C8: 200·240·244 | D8: 342 | E8: 136,235.94 | F8: 134,952.04 | G8: 0.00 | H8: 0.00 | I8: 0.00 | J8: =F8+G8+H8+I8 -> 134,952.04 | K8: =E8-J8 -> 1,283.90

Sheet Расходы200_06 (hidden)
B2: Наименование показателя | C2: Код аналитики | D2: КОСГУ | E2: Утверждено плановых назначений | F2: Исполнено плановых назначений | K2: Сумма отклонения
F3: через лицевые счета | G3: через банковские счета | H3: через кассу учреждения | I3: некассовые операции | J3: итого
A4: #КодыСтолбцов | B4: Наименование | C4: КОСГУ | D4: 1 | E4: 4 | F4: 5 | G4: 6 | H4: 7 | I4: 8 | J4: 9 | K4: 10
C5: 2 | D5: 3 | E5: 4 | F5: 5 | G5: 6 | H5: 7 | I5: 8 | J5: 9 | K5: 10
B6: #=ПолучитьСвойство([КОСГУ],Наименование) | J6: #=[5]+[6]+[7]+[8] | K6: #=[4]-[9]
J7: =F7+G7+H7+I7 -> 0.00 | K7: =E7-J7 -> 0.00

Sheet Расходы200_07 (hidden)
B2: Наименование показателя | C2: Код аналитики | D2: КОСГУ | E2: Утверждено плановых назначений | F2: Исполнено плановых назначений | K2: Сумма отклонения
F3: через лицевые счета | G3: через банковские счета | H3: через кассу учреждения | I3: некассовые операции | J3: итого
A4: #КодыСтолбцов | B4: Наименование | C4: КОСГУ | D4: 1 | E4: 4 | F4: 5 | G4: 6 | H4: 7 | I4: 8 | J4: 9 | K4: 10
C5: 2 | D5: 3 | E5: 4 | F5: 5 | G5: 6 | H5: 7 | I5: 8 | J5: 9 | K5: 10
B6: #=ПолучитьСвойство([КОСГУ],Наименование) | J6: #=[5]+[6]+[7]+[8] | K6: #=[4]-[9]
J7: =F7+G7+H7+I7 -> 0.00 | K7: =E7-J7 -> 0.00

Sheet Источники520_02 (hidden)
B2: Наименование показателя | C2: Код аналитики | D2: Утвержденные бюджетные назначения | E2: Исполнено плановых назначений | J2: Сумма отклонения
E3: через лицевые счета | F3: через банковские счета | G3: через кассу учреждения | H3: некассовые операции | I3: итого
A4: #КодыСтолбцов | B4: Наименование | C4: КОСГУ | D4: 4 | E4: 5 | F4: 6 | G4: 7 | H4: 8 | I4: 9 | J4: 10
C5: 3 | D5: 4 | E5: 5 | F5: 6 | G5: 7 | H5: 8 | I5: 9 | J5: 10
B6: #=ПолучитьСвойство([КОСГУ],Наименование) | I6: #=[5]+[6]+[7]+[8] | J6: #=[4]-[9]
I7: =E7+F7+G7+H7 -> 0.00 | J7: =D7-I7 -> 0.00

Sheet Источники520_04 (hidden)
B2: Наименование показателя | C2: Код аналитики | D2: Утвержденные бюджетные назначения | E2: Исполнено плановых назначений | J2: Сумма отклонения
E3: через лицевые счета | F3: через банковские счета | G3: через кассу учреждения | H3: некассовые операции | I3: итого
A4: #КодыСтолбцов | B4: Наименование | C4: КОСГУ | D4: 4 | E4: 5 | F4: 6 | G4: 7 | H4: 8 | I4: 9 | J4: 10
C5: 3 | D5: 4 | E5: 5 | F5: 6 | G5: 7 | H5: 8 | I5: 9 | J5: 10
B6: #=ПолучитьСвойство([КОСГУ],Наименование) | I6: #=[5]+[6]+[7]+[8] | J6: #=[4]-[9]
I7: =E7+F7+G7+H7 -> 0.00 | J7: =D7-I7 -> 0.00

Sheet Источники520_05 (hidden)
B2: Наименование показателя | C2: Код аналитики | D2: Утвержденные бюджетные назначения | E2: Исполнено плановых назначений | J2: Сумма отклонения
E3: через лицевые счета | F3: через банковские счета | G3: через кассу учреждения | H3: некассовые операции | I3: итого
A4: #КодыСтолбцов | B4: Наименование | C4: КОСГУ | D4: 4 | E4: 5 | F4: 6 | G4: 7 | H4: 8 | I4: 9 | J4: 10
C5: 3 | D5: 4 | E5: 5 | F5: 6 | G5: 7 | H5: 8 | I5: 9 | J5: 10
B6: #=ПолучитьСвойство([КОСГУ],Наименование) | I6: #=[5]+[6]+[7]+[8] | J6: #=[4]-[9]
I7: =E7+F7+G7+H7 -> 0.00 | J7: =D7-I7 -> 0.00

Sheet Источники520_06 (hidden)
B2: Наименование показателя | C2: Код аналитики | D2: Утвержденные бюджетные назначения | E2: Исполнено плановых назначений | J2: Сумма отклонения
E3: через лицевые счета | F3: через банковские счета | G3: через кассу учреждения | H3: некассовые операции | I3: итого
A4: #КодыСтолбцов | B4: Наименование | C4: КОСГУ | D4: 4 | E4: 5 | F4: 6 | G4: 7 | H4: 8 | I4: 9 | J4: 10
C5: 3 | D5: 4 | E5: 5 | F5: 6 | G5: 7 | H5: 8 | I5: 9 | J5: 10
B6: #=ПолучитьСвойство([КОСГУ],Наименование) | I6: #=[5]+[6]+[7]+[8] | J6: #=[4]-[9]
I7: =E7+F7+G7+H7 -> 0.00 | J7: =D7-I7 -> 0.00

Sheet Источники520_07 (hidden)
B2: Наименование показателя | C2: Код аналитики | D2: Утвержденные бюджетные назначения | E2: Исполнено плановых назначений | J2: Сумма отклонения
E3: через лицевые счета | F3: через банковские счета | G3: через кассу учреждения | H3: некассовые операции | I3: итого
A4: #КодыСтолбцов | B4: Наименование | C4: КОСГУ | D4: 4 | E4: 5 | F4: 6 | G4: 7 | H4: 8 | I4: 9 | J4: 10
C5: 3 | D5: 4 | E5: 5 | F5: 6 | G5: 7 | H5: 8 | I5: 9 | J5: 10
B6: #=ПолучитьСвойство([КОСГУ],Наименование) | I6: #=[5]+[6]+[7]+[8] | J6: #=[4]-[9]
I7: =E7+F7+G7+H7 -> 0.00 | J7: =D7-I7 -> 0.00

Sheet Источники620_02 (hidden)
B2: Наименование показателя | C2: Код аналитики | D2: Утвержденные бюджетные назначения | E2: Исполнено плановых назначений | J2: Сумма отклонения
E3: через лицевые счета | F3: через банковские счета | G3: через кассу учреждения | H3: некассовые операции | I3: итого
A4: #КодыСтолбцов | B4: Наименование | C4: КОСГУ | D4: 4 | E4: 5 | F4: 6 | G4: 7 | H4: 8 | I4: 9 | J4: 10
C5: 3 | D5: 4 | E5: 5 | F5: 6 | G5: 7 | H5: 8 | I5: 9 | J5: 10
B6: #=ПолучитьСвойство([КОСГУ],Наименование) | I6: #=[5]+[6]+[7]+[8] | J6: #=[4]-[9]
I7: =E7+F7+G7+H7 -> 0.00 | J7: =D7-I7 -> 0.00

Sheet Источники620_04 (hidden)
B2: Наименование показателя | C2: Код аналитики | D2: Утвержденные бюджетные назначения | E2: Исполнено плановых назначений | J2: Сумма отклонения
E3: через лицевые счета | F3: через банковские счета | G3: через кассу учреждения | H3: некассовые операции | I3: итого
A4: #КодыСтолбцов | B4: Наименование | C4: КОСГУ | D4: 4 | E4: 5 | F4: 6 | G4: 7 | H4: 8 | I4: 9 | J4: 10
C5: 3 | D5: 4 | E5: 5 | F5: 6 | G5: 7 | H5: 8 | I5: 9 | J5: 10
B6: #=ПолучитьСвойство([КОСГУ],Наименование) | I6: #=[5]+[6]+[7]+[8] | J6: #=[4]-[9]
I7: =E7+F7+G7+H7 -> 0.00 | J7: =D7-I7 -> 0.00

Sheet Источники620_05 (hidden)
B2: Наименование показателя | C2: Код аналитики | D2: Утвержденные бюджетные назначения | E2: Исполнено плановых назначений | J2: Сумма отклонения
E3: через лицевые счета | F3: через банковские счета | G3: через кассу учреждения | H3: некассовые операции | I3: итого
A4: #КодыСтолбцов | B4: Наименование | C4: КОСГУ | D4: 4 | E4: 5 | F4: 6 | G4: 7 | H4: 8 | I4: 9 | J4: 10
C5: 3 | D5: 4 | E5: 5 | F5: 6 | G5: 7 | H5: 8 | I5: 9 | J5: 10
B6: #=ПолучитьСвойство([КОСГУ],Наименование) | I6: #=[5]+[6]+[7]+[8] | J6: #=[4]-[9]
I7: =E7+F7+G7+H7 -> 0.00 | J7: =D7-I7 -> 0.00

Sheet Источники620_06 (hidden)
B2: Наименование показателя | C2: Код аналитики | D2: Утвержденные бюджетные назначения | E2: Исполнено плановых назначений | J2: Сумма отклонения
E3: через лицевые счета | F3: через банковские счета | G3: через кассу учреждения | H3: некассовые операции | I3: итого
A4: #КодыСтолбцов | B4: Наименование | C4: КОСГУ | D4: 4 | E4: 5 | F4: 6 | G4: 7 | H4: 8 | I4: 9 | J4: 10
C5: 3 | D5: 4 | E5: 5 | F5: 6 | G5: 7 | H5: 8 | I5: 9 | J5: 10
B6: #=ПолучитьСвойство([КОСГУ],Наименование) | I6: #=[5]+[6]+[7]+[8] | J6: #=[4]-[9]
I7: =E7+F7+G7+H7 -> 0.00 | J7: =D7-I7 -> 0.00

Sheet Источники620_07 (hidden)
B2: Наименование показателя | C2: Код аналитики | D2: Утвержденные бюджетные назначения | E2: Исполнено плановых назначений | J2: Сумма отклонения
E3: через лицевые счета | F3: через банковские счета | G3: через кассу учреждения | H3: некассовые операции | I3: итого
A4: #КодыСтолбцов | B4: Наименование | C4: КОСГУ | D4: 4 | E4: 5 | F4: 6 | G4: 7 | H4: 8 | I4: 9 | J4: 10
C5: 3 | D5: 4 | E5: 5 | F5: 6 | G5: 7 | H5: 8 | I5: 9 | J5: 10
B6: #=ПолучитьСвойство([КОСГУ],Наименование) | I6: #=[5]+[6]+[7]+[8] | J6: #=[4]-[9]
I7: =E7+F7+G7+H7 -> 0.00 | J7: =D7-I7 -> 0.00

Sheet Справочная_информация
A4: Справочная информация ф. 0503737
A7: Информация | F7: Описание
A8: Основание (нормативно-правовой акт) | E8: Приказ Минфина России N 33н от 25.03.2011 | F8: Приказ Минфина РФ от 25 марта 2011 г. N 33н "Об утверждении Инструкции о порядке составления, представления годовой, квартальной бухгалтерской отчетности государственных (муниципальных) бюджетных и автономных учреждений" (с изменениями и дополнениями)
A9: Внутриформенные Увязки | E9: по КС | F9: гр.8 = 0, не равно 0 - требуеттся пояснение
E10: по Заявке | F10: КВР=414 - требуется пояснение
A11: Межформенные Увязки | E11: по КС | F11: есть
E12: по Заявке | F12: 0503127: 1)Сверка Утвержденных и Исполненных сумм по доходам от оказания платных услуг и прочих доходов по ВД 4,5,6 2) Проверка Возврата остатков субсидий на выполнении гос. задания прошлых лет бюджетными и автономными учреждениями с идентичным показателем по исполнению бюджета. 0503317: 1)Сверка Утвержденных и Исполненных сумм по доходам от оказания платных услуг и прочих доходов по ВД 4,5,6 2) Проверка Возврата остатков субсидий на выполнении гос. задания прошлых лет бюджетными и автономными учреждениями с идентичным показателем по исполнению бюджета. 0305155а Сверка по Источникам 520 (Допустимо на возврат дебиторской задолженности по обеспечительным платежам)
A13: Обработки | E13: да | F13: Загрузка из АЦК Массовая загрузка из АЦК Сверка с формой 0503155а (по лицевым счетам)
A14: Выборки | E14: да | F14: Форма 0503737 Форма 0503737_Расхождение
A15: Периодичность: | E15: квартальная, годовая

Sheet Расходы_7370 (hidden)
A1: 111 | B1: Фонд оплаты труда учреждений
A2: 112 | B2: Иные выплаты персоналу учреждений, за исключением фонда оплаты труда
A3: 113 | B3: Иные выплаты, за исключением фонда оплаты труда учреждений, лицам, привлекаемым согласно законодательству для выполнения отдельных полномочий
A4: 119 | B4: Взносы по обязательному социальному страхованию на выплаты по оплате труда работников и иные выплаты работникам учреждений
A5: 131 | B5: Денежное довольствие военнослужащих и сотрудников, имеющих специальные звания
A6: 133 | B6: Расходы на выплаты военнослужащим и сотрудникам, имеющим специальные звания, зависящие от размера денежного довольствия
A7: 134 | B7: Иные выплаты военнослужащим и сотрудникам, имеющим специальные звания
A8: 139 | B8: Взносы по обязательному социальному страхованию на выплаты по оплате труда (денежное содержание) гражданских лиц
A9: 221 | B9: Обеспечение топливом и горюче-смазочными материалами в рамках государственного оборонного заказа
A10: 223 | B10: Продовольственное обеспечение в рамках государственного оборонного заказа
A11: 224 | B11: Продовольственное обеспечение вне рамок государственного оборонного заказа
A12: 225 | B12: Вещевое обеспечение в рамках государственного оборонного заказа
A13: 241 | B13: Научно-исследовательские и опытно-конструкторские работы
A14: 243 | B14: Закупка товаров, работ, услуг в целях капитального ремонта государственного (муниципального) имущества
A15: 244 | B15: Прочая закупка товаров, работ и услуг для обеспечения государственных (муниципальных) нужд
A16: 245 | B16: Закупка товаров, работ и услуг для обеспечения государственных (муниципальных) нужд в области геодезии и картографии вне рамок государственного оборонного заказа
A17: 247 | B17: Закупка энергетических ресурсов
A18: 321 | B18: Пособия, компенсации и иные социальные выплаты гражданам, кроме публичных нормативных обязательств
A19: 323 | B19: Приобретение товаров, работ, услуг в пользу граждан в целях их социального обеспечения
A20: 340 | B20: Стипендии
A21: 350 | B21: Премии и гранты
A22: 360 | B22: Иные выплаты населению
A23: 406 | B23: Приобретение объектов недвижимого имущества государственными (муниципальными) учреждениями
A24: 407 | B24: Строительство (реконструкция) объектов недвижимого имущества государственными (муниципальными) учреждениями
A25: 613 | B25: Гранты в форме субсидии бюджетным учреждениям
A26: 623 | B26: Гранты в форме субсидии автономным учреждениям
A27: 634 | B27: Гранты иным некоммерческим организациям
A28: 814 | B28: Гранты юридическим лицам (кроме некоммерческих организаций), индивидуальным предпринимателям
A29: 831 | B29: Исполнение судебных актов Российской Федерации и мировых соглашений по возмещению причиненного вреда
A30: 851 | B30: Уплата налога на имущество организаций и земельного налога
A31: 852 | B31: Уплата прочих налогов, сборов
A32: 853 | B32: Уплата иных платежей
A33: 862 | B33: Взносы в международные организации
A34: 863 | B34: Платежи в целях обеспечения реализации соглашений по обязательствам Российской Федерации перед иностранными государствами и международными организациями

Sheet КоСГУ1 (hidden)
A1: 111 | B1: Налоги
A2: 112 | B2: Государственная пошлина, сборы
A3: 113 | B3: Таможенные платежи
A4: 114 | B4: Обязательные страховые взносы
A5: 12A | B5: Доли в прибылях (убытках) объектов инвестирования
A6: 12K | B6: Доходы от концессионной платы
A7: 12T | B7: Доходы от простого товарищества
A8: 121 | B8: Доходы от операционной аренды
A9: 122 | B9: Доходы от финансовой аренды
A10: 123 | B10: Платежи при пользовании природными ресурсами
A11: 124 | B11: Проценты по депозитам, остаткам денежных средств
A12: 125 | B12: Проценты по предоставленным заимствованиям
A13: 126 | B13: Проценты по иным финансовым инструментам
A14: 127 | B14: Дивиденды от объектов инвестирования
A15: 128 | B15: Доходы от предоставления неисключительных прав на результаты интеллектуальной деятельности и средства индивидуализации
A16: 129 | B16: Иные доходы от собственности
A17: 131 | B17: Доходы от оказания платных услуг (работ)
A18: 132 | B18: Доходы от оказания услуг по программе обязательного медицинского страхования
A19: 133 | B19: Плата за предоставление информации из государственных источников (реестров)
A20: 134 | B20: Доходы от компенсации затрат
A21: 135 | B21: Доходы по условным арендным платежам
A22: 136 | B22: Доходы бюджета от возврата дебиторской задолженности прошлых лет
A23: 137 | B23: Доходы от предстоящей компенсации затрат
A24: 138 | B24: Доходы по выполненным этапам работ по договору строительного подряда
A25: 141 | B25: Доходы от штрафных санкций за нарушение законодательства о закупках и нарушение условий контрактов (договоров)
A26: 142 | B26: Доходы от штрафных санкций по долговым обязательствам
A27: 143 | B27: Страховые возмещения
A28: 144 | B28: Возмещение ущерба имуществу (за исключением страховых возмещений)
A29: 145 | B29: Прочие доходы от сумм принудительного изъятия
A30: 151 | B30: Поступления текущего характера от других бюджетов бюджетной системы Российской Федерации
A31: 152 | B31: Поступления текущего характера бюджетным и автономным учреждениям от сектора государственного управления
A32: 153 | B32: Поступления текущего характера в бюджеты бюджетной системы Российской Федерации от бюджетных и автономных учреждений
A33: 154 | B33: Поступления текущего характера от организаций государственного сектора
A34: 155 | B34: Поступления текущего характера от иных резидентов (за исключением сектора государственного управления и организаций государственного сектора)
A35: 156 | B35: Поступления текущего характера от наднациональных организаций и правительств иностранных государств
A36: 157 | B36: Поступления текущего характера от международных организаций
A37: 158 | B37: Поступления текущего характера от нерезидентов (за исключением наднациональных организаций и правительств иностранных государств, международных финансовых организаций)
A38: 159 | B38: Поступления (перечисления) по урегулированию расчетов между бюджетами бюджетной системы Российской Федерации по распределенным доходам и безвозмездные поступления
A39: 161 | B39: Поступления капитального характера от других бюджетов бюджетной системы Российской Федерации
A40: 162 | B40: Поступления капитального характера бюджетным и автономным учреждениям от сектора государственного управления
A41: 163 | B41: Поступления капитального характера в бюджеты бюджетной системы Российской Федерации от бюджетных и автономных учреждений
A42: 164 | B42: Поступления капитального характера от организаций государственного сектора
A43: 165 | B43: Поступления капитального характера от иных резидентов (за исключением сектора государственного управления и организаций государственного сектора)
A44: 166 | B44: Поступления капитального характера от наднациональных организаций и правительств иностранных государств
A45: 167 | B45: Поступления капитального характера от международных организаций
A46: 168 | B46: Поступления капитального характера от нерезидентов (за исключением наднациональных организаций и правительств иностранных государств, международных организаций)
A47: 17T | B47: Доходы (убытки) от деятельности простого товарищества
A48: 17Z | B48: Результат инфляционной корректировки активов и обязательств
A49: 171 | B49: Курсовые разницы
A50: 172 | B50: Доходы от выбытия активов
A51: 173 | B51: Чрезвычайные доходы от операций с активами
A52: 174 | B52: Выпадающие доходы
A53: 175 | B53: Курсовые разницы по результатам пересчета бухгалтерской (финансовой) отчетности загранучреждений
A54: 176 | B54: Доходы от оценки активов и обязательств
A55: 177 | B55: Изменения в капитале объекта инвестирования
A56: 18K | B56: Прочие доходы от увеличения стоимости имущества концедента
A57: 18T | B57: Прочие доходы (убытки) от деятельности простого товарищества
A58: 181 | B58: Невыясненные поступления
A59: 182 | B59: Доходы от безвозмездного права пользования активом, предоставленным организациями (за исключением сектора государственного управления и организаций государственного сектора)
A60: 185 | B60: Доходы от безвозмездного права пользования активом, предоставленным организациями государственного сектора
A61: 186 | B61: Доходы от безвозмездного права пользования активом, предоставленным сектором государственного управления
A62: 187 | B62: Доходы от безвозмездного права пользования активом, предоставленным иными лицами
A63: 189 | B63: Иные доходы
A64: 191 | B64: Безвозмездные неденежные поступления текущего характера от сектора государственного управления и организаций государственного сектора
A65: 192 | B65: Безвозмездные неденежные поступления текущего характера от организаций (за исключением сектора государственного управления и организаций государственного сектора)
A66: 193 | B66: Безвозмездные неденежные поступления текущего характера от физических лиц
A67: 194 | B67: Безвозмездные неденежные поступления текущего характера от нерезидентов
A68: 195 | B68: Безвозмездные неденежные поступления капитального характера от сектора государственного управления и организаций государственного сектора
A69: 196 | B69: Безвозмездные неденежные поступления капитального характера от организаций (за исключением сектора государственного управления и организаций государственного сектора)
A70: 197 | B70: Безвозмездные неденежные поступления капитального характера от физических лиц
A71: 198 | B71: Безвозмездные неденежные поступления в сектор государственного управления капитального характера от нерезидентов
A72: 199 | B72: Прочие неденежные безвозмездные поступления
A73: 211 | B73: Заработная плата
A74: 212 | B74: Прочие несоциальные выплаты персоналу в денежной форме
A75: 213 | B75: Начисления на выплаты по оплате труда
A76: 214 | B76: Прочие несоциальные выплаты персоналу в натуральной форме
A77: 221 | B77: Услуги связи
A78: 222 | B78: Транспортные услуги
A79: 223 | B79: Коммунальные услуги
A80: 224 | B80: Арендная плата за пользование имуществом (за исключением земельных участков и других обособленных природных объектов)
A81: 225 | B81: Работы, услуги по содержанию имущества
A82: 226 | B82: Прочие работы, услуги
A83: 227 | B83: Страхование
A84: 228 | B84: Услуги, работы для целей капитальных вложений
A85: 229 | B85: Арендная плата за пользование земельными участками и другими обособленными природными объектами
A86: 231 | B86: Обслуживание внутреннего долга
A87: 232 | B87: Обслуживание внешнего долга
A88: 233 | B88: Обслуживание долговых обязательств учреждений
A89: 234 | B89: Процентные расходы по обязательствам
A90: 24A | B90: Безвозмездные перечисления иным нефинансовым организациям (за исключением нефинансовых организаций государственного сектора) на продукцию
A91: 24B | B91: Безвозмездные перечисления некоммерческим организациям и физическим лицам - производителям товаров, работ и услуг на продукцию
A92: 241 | B92: Безвозмездные перечисления (передачи) текущего характера сектора государственного управления
A93: 242 | B93: Безвозмездные перечисления финансовым организациям государственного сектора на производство
A94: 243 | B94: Безвозмездные перечисления иным финансовым организациям (за исключением финансовых организаций государственного сектора) на производство
A95: 244 | B95: Безвозмездные перечисления нефинансовым организациям государственного сектора на производство
A96: 245 | B96: Безвозмездные перечисления иным нефинансовым организациям (за исключением нефинансовых организаций государственного сектора) на производство
A97: 246 | B97: Безвозмездные перечисления некоммерческим организациям и физическим лицам - производителям товаров, работ и услуг на производство
A98: 247 | B98: Безвозмездные перечисления финансовым организациям государственного сектора на продукцию
A99: 248 | B99: Безвозмездные перечисления иным финансовым организациям (за исключением финансовых организаций государственного сектора) на продукцию
A100: 249 | B100: Безвозмездные перечисления нефинансовым организациям государственного сектора на продукцию
A101: 251 | B101: Перечисления другим бюджетам бюджетной системы Российской Федерации
A102: 252 | B102: Перечисления наднациональным организациям и правительствам иностранных государств
A103: 253 | B103: Перечисления международным организациям
A104: 261 | B104: Пенсии, пособия и выплаты по пенсионному, социальному и медицинскому страхованию населения
A105: 262 | B105: Пособия по социальной помощи населению в денежной форме
A106: 263 | B106: Пособия по социальной помощи населению в натуральной форме
A107: 264 | B107: Пенсии, пособия, выплачиваемые работодателями, нанимателями бывшим работникам
A108: 265 | B108: Пособия по социальной помощи, выплачиваемые работодателями, нанимателями бывшим работникам в натуральной форме
A109: 266 | B109: Социальные пособия и компенсации персоналу в денежной форме
A110: 267 | B110: Социальные компенсации персоналу в натуральной форме
A111: 271 | B111: Амортизация
A112: 272 | B112: Расходование материальных запасов
A113: 273 | B113: Чрезвычайные расходы по операциям с активами
A114: 274 | B114: Убытки от обесценения активов
A115: 281 | B115: Безвозмездные перечисления капитального характера государственным (муниципальным) учреждениям
A116: 282 | B116: Безвозмездные перечисления капитального характера финансовым организациям государственного сектора
A117: 283 | B117: Безвозмездные перечисления капитального характера иным финансовым организациям (за исключением финансовых организаций государственного сектора)
A118: 284 | B118: Безвозмездные перечисления капитального характера нефинансовым организациям государственного сектора
A119: 285 | B119: Безвозмездные перечисления капитального характера иным нефинансовым организациям (за исключением нефинансовых организаций государственного сектора)
A120: 286 | B120: Безвозмездные перечисления капитального характера некоммерческим организациям и физическим лицам - производителям товаров, работ и услуг
A121: 29T | B121: Расходы по возмещению убытков (расходов) от деятельности простого товарищества
A122: 291 | B122: Налоги, пошлины и сборы
A123: 292 | B123: Штрафы за нарушение законодательства о налогах и сборах, законодательства о страховых взносах
A124: 293 | B124: Штрафы за нарушение законодательства о закупках и нарушение условий контрактов (договоров)
A125: 294 | B125: Штрафные санкции по долговым обязательствам
A126: 295 | B126: Другие экономические санкции
A127: 296 | B127: Иные выплаты текущего характера физическим лицам
A128: 297 | B128: Иные выплаты текущего характера организациям
A129: 298 | B129: Иные выплаты капитального характера физическим лицам
A130: 299 | B130: Иные выплаты капитального характера организациям
A131: 310 | B131: Увеличение стоимости основных средств
A132: 320 | B132: Увеличение стоимости нематериальных активов
A133: 330 | B133: Увеличение стоимости непроизведенных активов
A134: 341 | B134: Увеличение стоимости лекарственных препаратов и материалов, применяемых в медицинских целях
A135: 342 | B135: Увеличение стоимости продуктов питания
A136: 343 | B136: Увеличение стоимости горюче-смазочных материалов
A137: 344 | B137: Увеличение стоимости строительных материалов
A138: 345 | B138: Увеличение стоимости мягкого инвентаря
A139: 346 | B139: Увеличение стоимости прочих материальных запасов
A140: 347 | B140: Увеличение стоимости материальных запасов для целей капитальных вложений
A141: 349 | B141: Увеличение стоимости прочих материальных запасов однократного применения
A142: 351 | B142: Увеличение стоимости права пользования активом
A143: 352 | B143: Увеличение стоимости неисключительных прав на результаты интеллектуальной деятельности с неопределенным сроком полезного использования
A144: 353 | B144: Увеличение стоимости неисключительных прав на результаты интеллектуальной деятельности с определенным сроком полезного использования
A145: 360 | B145: Увеличение стоимости биологических активов
A146: 411 | B146: Амортизация основных средств
A147: 412 | B147: Обесценение основных средств
A148: 421 | B148: Амортизация нематериальных активов
A149: 422 | B149: Обесценение нематериальных активов с определенным сроком полезного использования
A150: 423 | B150: Обесценение нематериальных активов с неопределенным сроком полезного использования
A151: 432 | B151: Обесценение непроизведенных активов
A152: 441 | B152: Уменьшение стоимости лекарственных препаратов и материалов, применяемых в медицинских целях
A153: 442 | B153: Уменьшение стоимости продуктов питания
A154: 443 | B154: Уменьшение стоимости горюче-смазочных материалов
A155: 444 | B155: Уменьшение стоимости строительных материалов
A156: 445 | B156: Уменьшение стоимости мягкого инвентаря
A157: 446 | B157: Уменьшение стоимости прочих оборотных ценностей (материалов)
A158: 447 | B158: Уменьшение стоимости материальных запасов для целей капитальных вложений
A159: 449 | B159: Уменьшение стоимости прочих материальных запасов однократного применения
A160: 451 | B160: Уменьшение стоимости права пользования активом
A161: 452 | B161: Уменьшение стоимости неисключительных прав на результаты интеллектуальной деятельности с определенным сроком полезного использования
A162: 453 | B162: Уменьшение стоимости неисключительных прав на результаты интеллектуальной деятельности с неопределенным сроком полезного использования
A163: 461 | B163: Выбытие биологических активов
A164: 462 | B164: Обесценение биологических активов
A165: 510 | B165: Поступление денежных средств и их эквивалентов
A166: 520 | B166: Увеличение стоимости ценных бумаг, кроме акций и иных финансовых инструментов
A167: 530 | B167: Увеличение стоимости акций и иных финансовых инструментов
A168: 541 | B168: Увеличение задолженности по предоставленным заимствованиям бюджетам бюджетной системы Российской Федерации
A169: 542 | B169: Увеличение задолженности по предоставленным заимствованиям государственным (муниципальным) автономным учреждениям
A170: 543 | B170: Увеличение задолженности по предоставленным заимствованиям финансовым и нефинансовым организациям государственного сектора
A171: 544 | B171: Увеличение задолженности по предоставленным заимствованиям иным нефинансовым организациям
A172: 545 | B172: Увеличение задолженности по предоставленным заимствованиям иным финансовым организациям
A173: 546 | B173: Увеличение задолженности по предоставленным заимствованиям некоммерческим организациям и физическим лицам - производителям товаров, работ, услуг
A174: 547 | B174: Увеличение задолженности по предоставленным заимствованиям физическим лицам
A175: 548 | B175: Увеличение задолженности по предоставленным заимствованиям наднациональным организациям и правительствам иностранных государств
A176: 549 | B176: Увеличение задолженности по предоставленным заимствованиям нерезидентам
A177: 551 | B177: Привлечение средств участников бюджетного процесса
A178: 552 | B178: Привлечение средств государственных (муниципальных) бюджетных и автономных учреждений
A179: 553 | B179: Привлечение средств финансовых и нефинансовых организаций государственного сектора
A180: 554 | B180: Привлечение средств иных нефинансовых организаций
A181: 555 | B181: Привлечение средств иных финансовых организаций
A182: 556 | B182: Привлечение средств некоммерческих организаций и физических лиц - производителей товаров, работ, услуг
A183: 557 | B183: Привлечение средств физических лиц
A184: 561 | B184: Увеличение прочей дебиторской задолженности по расчетам с участниками бюджетного процесса
A185: 562 | B185: Увеличение прочей дебиторской задолженности по расчетам с государственными (муниципальными) бюджетными и автономными учреждениями
A186: 563 | B186: Увеличение прочей дебиторской задолженности по расчетам с финансовыми и нефинансовыми организациями государственного сектора
A187: 564 | B187: Увеличение прочей дебиторской задолженности по расчетам с иными нефинансовыми организациями
A188: 565 | B188: Увеличение прочей дебиторской задолженности по расчетам с иными финансовыми организациями
A189: 566 | B189: Увеличение прочей дебиторской задолженности по расчетам с некоммерческими организациями и физическими лицами - производителями товаров, работ, услуг
A190: 567 | B190: Увеличение прочей дебиторской задолженности по расчетам с физическими лицами
A191: 568 | B191: Увеличение прочей дебиторской задолженности по расчетам с наднациональными организациями и правительствами иностранных государств
A192: 569 | B192: Увеличение прочей дебиторской задолженности по расчетам с нерезидентами
A193: 610 | B193: Выбытие денежных средств и их эквивалентов
A194: 620 | B194: Уменьшение стоимости ценных бумаг, кроме акций и иных финансовых инструментов
A195: 630 | B195: Уменьшение стоимости акций и иных финансовых инструментов
A196: 641 | B196: Уменьшение задолженности по предоставленным заимствованиям бюджетам бюджетной системы Российской Федерации
A197: 642 | B197: Уменьшение задолженности по предоставленным заимствованиям государственным (муниципальным) автономным учреждениям
A198: 643 | B198: Уменьшение задолженности по предоставленным заимствованиям финансовым и нефинансовым организациям государственного сектора
A199: 644 | B199: Уменьшение задолженности по предоставленным заимствованиям иным нефинансовым организациям
A200: 645 | B200: Уменьшение задолженности по предоставленным заимствованиям иным финансовым организациям
... 42 more rows

Sheet Расходы_7372 (hidden)
A1: 111 | B1: Фонд оплаты труда учреждений
A2: 112 | B2: Иные выплаты персоналу учреждений, за исключением фонда оплаты труда
A3: 113 | B3: Иные выплаты, за исключением фонда оплаты труда учреждений, лицам, привлекаемым согласно законодательству для выполнения отдельных полномочий
A4: 119 | B4: Взносы по обязательному социальному страхованию на выплаты по оплате труда работников и иные выплаты работникам учреждений
A5: 131 | B5: Денежное довольствие военнослужащих и сотрудников, имеющих специальные звания
A6: 133 | B6: Расходы на выплаты военнослужащим и сотрудникам, имеющим специальные звания, зависящие от размера денежного довольствия
A7: 134 | B7: Иные выплаты военнослужащим и сотрудникам, имеющим специальные звания
A8: 139 | B8: Взносы по обязательному социальному страхованию на выплаты по оплате труда (денежное содержание) гражданских лиц
A9: 221 | B9: Обеспечение топливом и горюче-смазочными материалами в рамках государственного оборонного заказа
A10: 223 | B10: Продовольственное обеспечение в рамках государственного оборонного заказа
A11: 224 | B11: Продовольственное обеспечение вне рамок государственного оборонного заказа
A12: 225 | B12: Вещевое обеспечение в рамках государственного оборонного заказа
A13: 241 | B13: Научно-исследовательские и опытно-конструкторские работы
A14: 243 | B14: Закупка товаров, работ, услуг в целях капитального ремонта государственного (муниципального) имущества
A15: 244 | B15: Прочая закупка товаров, работ и услуг для обеспечения государственных (муниципальных) нужд
A16: 245 | B16: Закупка товаров, работ и услуг для обеспечения государственных (муниципальных) нужд в области геодезии и картографии вне рамок государственного оборонного заказа
A17: 247 | B17: Закупка энергетических ресурсов
A18: 321 | B18: Пособия, компенсации и иные социальные выплаты гражданам, кроме публичных нормативных обязательств
A19: 323 | B19: Приобретение товаров, работ, услуг в пользу граждан в целях их социального обеспечения
A20: 340 | B20: Стипендии
A21: 350 | B21: Премии и гранты
A22: 360 | B22: Иные выплаты населению
A23: 406 | B23: Приобретение объектов недвижимого имущества государственными (муниципальными) учреждениями
A24: 407 | B24: Строительство (реконструкция) объектов недвижимого имущества государственными (муниципальными) учреждениями
A25: 414 | B25: Бюджетные инвестиции в объекты капитального строительства государственной (муниципальной) собственности
A26: 613 | B26: Гранты в форме субсидии бюджетным учреждениям
A27: 623 | B27: Гранты в форме субсидии автономным учреждениям
A28: 634 | B28: Гранты иным некоммерческим организациям
A29: 814 | B29: Гранты юридическим лицам (кроме некоммерческих организаций), индивидуальным предпринимателям
A30: 831 | B30: Исполнение судебных актов Российской Федерации и мировых соглашений по возмещению причиненного вреда
A31: 851 | B31: Уплата налога на имущество организаций и земельного налога
A32: 852 | B32: Уплата прочих налогов, сборов
A33: 853 | B33: Уплата иных платежей
A34: 862 | B34: Взносы в международные организации
A35: 863 | B35: Платежи в целях обеспечения реализации соглашений по обязательствам Российской Федерации перед иностранными государствами и международными организациями

Sheet Источники520_7373 (hidden)
A1: 171 | B1: Курсовые разницы
A2: 520 | B2: Увеличение стоимости ценных бумаг, кроме акций и иных финансовых инструментов
A3: 540 | B3: Увеличение задолженности по предоставленным бюджетным кредитам (займам)
A4: 620 | B4: Уменьшение стоимости ценных бумаг, кроме акций и иных финансовых инструментов
A5: 630 | B5: Уменьшение стоимости акций и иных финансовых инструментов
A6: 640 | B6: Уменьшение задолженности по предоставленным бюджетным кредитам (займам)
A7: 710 | B7: Увеличение внутренних долговых обязательств
A8: 810 | B8: Уменьшение внутренних долговых обязательств

Sheet Источники620_7374 (hidden)
A1: 171 | B1: Курсовая разница
A2: 520 | B2: Увеличение стоимости ценных бумаг, кроме акций и иных форм участия в капитале
A3: 540 | B3: Увеличение задолженности по ссудам, займам
A4: 620 | B4: Уменьшение стоимости ценных бумаг, кроме акций и иных форм участия в капитале
A5: 640 | B5: Уменьшение задолженности по ссудам, займам
A6: 720 | B6: Поступления заимствований от резидентов
A7: 820 | B7: Погашение заимствований от нерезидентов
